Cogmind - Beta 13 @@@ ROGUE MODE // 2024.07.05 @ 17:55:54 Player: N.W.L Result: Escaped! Performance ------------- Evolutions (9) 4500 Regions Visited (32) 6400 Robots Destroyed (565) 2825 Value Destroyed (29823) 29823 Prototype IDs (92) 1840 Alien Tech Used (4) 800 Bonus (14768) 14768 TOTAL SCORE: 60956 Bonus ------- High Alert Combat Kills 5886 Follower Combat Kills 1386 Entered Garrisons 800 Acquired ECA 300 Met Zhirov 300 Met Warlord at Base 500 MAIN.C Attacked Warlord 500 Warlord Defense Kills 270 Scanned by Researcher 500 Acquired SGEMP 2000 Delivered SGEMP 2000 Win 3000 Friendly Fire -2674 Cogmind --------- Core Integrity 1282/1600 Matter 290/300 Energy 263/440 System Corruption 4% Temperature Cool (11) Movement Treading (145) Location To Epsilon Eridani Parts ------- > --- POWER (2) -------- Light Quantum Reactor Improved Quantum Reactor > --- PROPULSION (6) --- Advanced Heavy Treads Advanced Heavy Treads Biometal Heavy Treads > --- UTILITY (14) ----- Advanced Heat Sink Advanced Heat Sink Spectral Analyzer Experimental Targeting Computer Improved Core Shielding Heavy Regenerative Plating SHELL Armor SHELL Armor Improved Hacking Suite > --- WEAPON (3) ------- Improved Potential Cannon Micro-nuke Launcher > --- INVENTORY (5) ---- Improved Weapon Cycler Transdimensional Reconstructor Peak State ------------ > --- POWER ------------ Light Quantum Reactor Improved Quantum Reactor > --- PROPULSION ------- Advanced Heavy Treads Advanced Heavy Treads Biometal Heavy Treads > --- UTILITY ---------- Advanced Heat Sink Advanced Heat Sink Spectral Analyzer Experimental Targeting Computer Improved Weapon Cycler Heavy Regenerative Plating SHELL Armor SHELL Armor Improved Hacking Suite > --- WEAPON ----------- Enhanced Force Rifle Sigix Broadsword > --- INVENTORY -------- Transdimensional Reconstructor Transdimensional Reconstructor Improved Potential Cannon Long-range Missile Launcher [Rating: 221] Favorites ----------- Power Light Quantum Reactor Engine Light Ion Engine Power Core Neutrino Core Reactor Light Quantum Reactor Propulsion Armored Treads Treads Armored Treads Leg Flexi-carbon Leg Wheel Compact Wheel Flight Unit Cooled Nuclear Pulse Thruster Utility Huge Storage Unit Device Advanced Cooling System Storage Huge Storage Unit Processor Experimental Core Analyzer Hackware Hacking Suite Protection Layered Light Armor Plating Weapon KE Penetrator Energy Gun Gatling Laser Energy Cannon Nova Cannon Ballistic Gun KE Penetrator Ballistic Cannon Heavy Hardcell Cannon Launcher Subdweller Shrapnel Launcher Special Weapon Multitool Impact Weapon Makeshift Hammer Slashing Weapon Ripper Special Melee Weapon Datajack Build | -11 -10 -10 -8 -8 -8 -7 -7 -7 -7 -7 -7 -6 -6 -6 -6 -5 -5 -5 -5 -5 -5 -4 -4 -4 -4 -4 -3 -3 -3 -2 -2 -1 ------- Run | Yrd Mat Sub Mat Gar Mat Fac Gar Fac Low Low Zio Pro Fac Gar Fac Fac Gar Fac Upp Upp War Pro Fac Upp Upp Zhi Pro Res Tes Res Qua Acc Slots Evolved 18 | . . . 4 . . 2 . . . . . . 2 . . 2 . . . . . . 2 . . . . 2 . 2 . 2 Power 1 | . . . . . . . . . . . . . . . . . . . . . . . 1 . . . . . . . . . Propulsion 4 | . . . 1 . . 1 . . . . . . 1 . . 1 . . . . . . . . . . . . . . . . Utility 12 | . . . 2 . . 1 . . . . . . 1 . . 1 . . . . . . 1 . . . . 2 . 2 . 2 Weapon 1 | . . . 1 . . . . . . . . . . . . . . . . . . . . . . . . . . . . . Parts Attached 599 | 8 4 35 32 3 8 11 16 7 7 7 2 19 38 25 12 26 19 9 11 10 30 4 36 20 3 10 3 3 107 20 24 30 Power 34 | 1 . 1 1 1 1 2 1 . . . . 2 1 . . 1 . . . 1 . . 3 2 1 3 . . 3 5 3 1 Engine 7 | 1 . 1 1 . 1 1 . . . . . 2 . . . . . . . . . . . . . . . . . . . . Core 5 | . . . . 1 . 1 1 . . . . . . . . . . . . 1 . . . . . 1 . . . . . . Reactor 22 | . . . . . . . . . . . . . 1 . . 1 . . . . . . 3 2 1 2 . . 3 5 3 1 Propulsion 97 | 4 . 3 4 . 3 3 . 4 . . . . 15 3 . 2 1 3 2 . 8 . 6 3 2 1 1 . 19 4 . 6 Treads 69 | 2 . 3 4 . 3 2 . 4 . . . . 14 3 . 2 1 2 2 . 6 . 3 1 . . . . 7 4 . 6 Leg 12 | 2 . . . . . . . . . . . . . . . . . 1 . . 2 . . 2 1 . 1 . 3 . . . Wheel 15 | . . . . . . 1 . . . . . . 1 . . . . . . . . . 3 . 1 . . . 9 . . . Hover . | . . . . . . . . . . . . . . . . . . . . . . . . . . . . . . . . . Flight 1 | . . . . . . . . . . . . . . . . . . . . . . . . . . 1 . . . . . . Utility 200 | 1 1 15 8 2 2 3 4 . 3 3 1 10 10 7 6 13 . 5 3 2 11 2 10 6 . 5 2 3 40 3 10 9 Device 122 | . 1 7 1 1 2 2 3 . 3 1 1 6 5 5 3 9 . 2 3 2 6 2 6 3 . 2 2 1 30 2 7 4 Storage 10 | 1 . 1 3 . . 1 . . . . . . . 1 . . . . . . 1 . . 1 . 1 . . . . . . Processor 8 | . . . . . . . . . . . . . 1 . . . . . . . 1 . . 1 . . . 1 2 . 1 1 Hackware 10 | . . . 1 1 . . . . . . . . . . . 2 . 1 . . . . 2 . . 1 . . . 1 . 1 Protection 50 | . . 7 3 . . . 1 . . 2 . 4 4 1 3 2 . 2 . . 3 . 2 1 . 1 . 1 8 . 2 3 Artifact . | . . . . . . . . . . . . . . . . . . . . . . . . . . . . . . . . . Weapon 268 | 2 3 16 19 . 2 3 11 3 4 4 1 7 12 15 6 10 18 1 6 7 11 2 17 9 . 1 . . 45 8 11 14 Energy Gun 24 | 1 2 . 1 . . . 1 . . . . . 3 7 2 1 1 . . . . . . . . . . . 2 . 2 1 Energy Cannon 37 | . . 1 2 . . . . . . . . . . . . 2 4 . 1 2 2 . 2 3 . 1 . . 11 2 . 4 Ballistic Gun 100 | 1 1 5 12 . 1 2 7 2 2 2 . 3 3 5 2 5 6 . 3 2 4 1 9 3 . . . . 13 3 3 . Ballistic Cannon 22 | . . 1 . . . . . 1 2 . . . 1 . . . . . . . . . . . . . . . 11 2 2 2 Launcher 40 | . . 2 1 . 1 . 1 . . 1 . 2 2 3 1 . 4 1 2 3 . 1 1 3 . . . . 6 1 2 2 Special Weapon 3 | . . . 2 . . . . . . . . 1 . . . . . . . . . . . . . . . . . . . . Impact Weapon 6 | . . 6 . . . . . . . . . . . . . . . . . . . . . . . . . . . . . . Slashing Weapon 28 | . . 1 1 . . 1 . . . 1 1 1 3 . 1 2 . . . . 3 . 4 . . . . . 2 . 2 5 Piercing Weapon . | . . . . . . . . . . . . . . . . . . . . . . . . . . . . . . . . . Special Melee Weapon 8 | . . . . . . . 2 . . . . . . . . . 3 . . . 2 . 1 . . . . . . . . . Unidentified Prototypes 49 | . . 1 3 . 1 . . . . . 1 . 1 1 . . . . . . 6 . 4 . . 5 . . 17 3 4 2 Corrupted Parts 3 | . . . . . . . . . . . . . . . . . . . . . . . . . . . . . 2 1 . . System Corruption 21 | . . . . . . . . . . . . . . . . . . . . . . . . . . . . . 18 3 . . Parts Lost 135 | . . 3 3 . . . 11 3 . 1 . 5 19 8 3 2 1 . 4 1 1 1 14 7 . . 1 . 32 . 7 8 Power 16 | . . . 1 . . . 4 . . . . 2 1 . . 1 . . 1 . . . 2 . . . . . 1 . 2 1 Propulsion 48 | . . 2 . . . . . 2 . . . . 10 2 . . 1 . 2 1 1 . 10 2 . . . . 14 . . 1 Utility 39 | . . 1 2 . . . 3 . . 1 . 2 2 5 1 . . . 1 . . 1 2 2 . . 1 . 9 . 3 3 Weapon 32 | . . . . . . . 4 1 . . . 1 6 1 2 1 . . . . . . . 3 . . . . 8 . 2 3 Highest Loss Streak 11 | . . 2 1 . . . 6 2 . 1 . 2 5 5 3 1 1 . 3 1 1 1 10 6 . . 1 . 11 . 5 4 To Critical Strikes 6 | . . . . . . . . . . . . . 2 . . . . . . . . . 3 . . . . . . . . 1 Average Slot Usage (%) 82 | . 97 95 96 100 87 84 91 97 100 99 100 93 82 62 74 70 75 81 79 67 75 100 94 60 87 81 89 89 77 72 69 66 Engine 2 | . 14 14 8 . 1 6 6 . . . . 2 2 . . . . . . . . . . . . . . . . . . . Core 1 | . . . . 8 7 6 11 7 7 7 7 . . . . . . . . 1 5 5 . . . . . . . . . . Reactor 2 | . . . . . . . . . . . . . . 6 6 4 5 5 4 . . . 8 2 4 5 5 4 7 8 7 7 Treads 17 | . . 23 26 27 23 18 13 26 30 30 30 30 24 10 20 17 16 22 22 12 12 35 24 1 5 5 5 4 8 12 13 11 Leg 1 | . 28 . . . . . . . . . . . . . . . . . . . 2 . . 3 14 15 17 19 3 . . . Device 14 | . 11 10 3 9 8 17 19 15 15 21 23 12 11 18 14 11 11 14 16 17 14 14 10 15 15 15 15 18 18 24 17 15 Storage 6 | . 14 13 9 9 7 6 6 7 7 7 7 7 6 6 6 5 5 5 5 5 5 5 5 2 5 5 5 4 4 4 4 1 Processor 3 | . . . . . . . . . . . . . 6 1 . . . . . . 1 5 5 9 10 10 10 9 6 4 7 8 Hackware 3 | . . . . 15 14 6 6 7 7 . . . . . . 4 5 7 11 11 9 5 13 5 5 1 . . . . . 3 Protection 6 | . . 3 21 2 . . . 7 6 8 7 16 9 1 6 5 11 6 . . 3 7 5 5 5 7 10 13 8 8 9 10 Energy Gun 1 | . 14 . . 9 4 . . . . . . . 2 9 9 2 . . . . . . . . . . . . . . . 3 Energy Cannon 1 | . . 1 . . . . . . . . . . . . . . . . 3 2 . . . 5 10 5 10 9 1 . . . Ballistic Gun 10 | . 14 9 25 18 19 17 17 19 20 16 16 21 8 4 8 10 15 16 11 11 11 16 13 6 . . . . 4 3 2 . Launcher 1 | . . 4 . . . . . . . 3 . . . . . . . . . 2 . . . 1 5 . . . . . . . Impact Weapon 1 | . . 10 . . . . . . . . . . . . . . . . . . . . . . . . . . . . . . Naked Turns . | . . . . . . . . . . . . . . . . . . . . . . . . . . . . . . . . . Heaviest Build 210 | 12 14 27 58 69 81 135 135 110 110 107 102 120 130 175 187 191 191 184 182 182 187 139 157 165 165 158 162 171 186 196 206 210 Greatest Support 225 | 20 20 40 64 62 62 80 40 80 80 80 80 80 128 170 170 225 225 225 205 130 165 165 165 40 60 60 85 85 141 210 210 215 Greatest Overweight (x) 52 | 1 . . . 1 1 4 6 3 1 1 1 1 9 9 1 . . 1 1 3 3 . 52 39 10 9 2 2 9 1 . 1 Average Overweight (x) 1 | . . . . . 1 2 3 1 1 1 1 1 2 3 . . . . . 2 2 . 1 7 9 5 1 1 1 . . . Largest Inventory Capacity 30 | 8 8 8 20 20 20 25 25 25 25 25 25 25 25 30 30 30 30 30 30 30 30 25 25 25 25 25 25 25 25 25 25 25 Average Capacity 21 | 7 8 7 11 20 20 24 25 25 25 25 25 25 25 28 30 30 30 30 30 30 28 25 25 14 25 25 25 25 25 25 25 14 Most Carried 30 | 4 8 8 17 20 20 25 25 23 25 25 25 25 25 30 30 30 30 30 30 30 30 25 25 21 20 25 25 25 25 25 25 25 Average Carried 20 | 2 7 7 10 19 19 22 24 21 24 24 24 23 17 24 28 29 29 29 29 29 28 24 24 11 18 23 23 23 23 24 24 12 Final Capacity 30 | 8 8 8 20 20 20 25 25 25 25 25 25 25 25 30 30 30 30 30 30 30 25 25 25 25 25 25 25 25 25 25 25 5 Final Carried 30 | 4 8 8 17 20 20 25 22 23 25 25 25 25 18 27 30 30 30 30 30 30 25 24 21 17 20 24 25 25 25 25 25 2 Class Distribution -------------------- 18% | Mutant 16% | Scavenger-Tank 13% | Tank 12% | Trapper-Gunner 7% | Trapper-Mutant 6% | Scavenger-Mutant 5% | Hacker-Gunner 4% | Trapper-Tank 4% | Gunner 3% | Hauler-Tank Dominant Class ---------------- Mutant | -10/Materials Mutant | -10/Subcaves Tank | -8/Materials Hacker-Gunner | -8/Garrison Commander-Gunner | -8/Materials Tank | -7/Factory Gunner | -7/Garrison Gunner | -7/Factory Tank | -7/Lower Caves Tank | -7/Lower Caves Mutant | -7/Zion Tank | -6/Proximity Caves Trapper-Mutant | -6/Factory Hauler-Tank | -6/Garrison Scavenger-Tank | -6/Factory Scavenger-Tank | -5/Factory Scavenger-Tank | -5/Garrison Scavenger-Tank | -5/Factory Scavenger-Tank | -5/Upper Caves Hauler-Tank | -5/Upper Caves Trapper-Mutant | -5/Warlord Scavenger-Tank | -4/Proximity Caves Scavenger-Tank | -4/Factory Trapper-Gunner | -4/Upper Caves Scavenger-Gunner | -4/Upper Caves Scavenger-Mutant | -4/Zhirov Scavenger-Mutant | -3/Proximity Caves Scavenger-Mutant | -3/Research Trapper-Gunner | -3/Testing Trapper-Tank | -2/Research Trapper-Gunner | -2/Quarantine Trapper-Mutant | -1/Access Resources | -11 -10 -10 -8 -8 -8 -7 -7 -7 -7 -7 -7 -6 -6 -6 -6 -5 -5 -5 -5 -5 -5 -4 -4 -4 -4 -4 -3 -3 -3 -2 -2 -1 ----------- Run | Yrd Mat Sub Mat Gar Mat Fac Gar Fac Low Low Zio Pro Fac Gar Fac Fac Gar Fac Upp Upp War Pro Fac Upp Upp Zhi Pro Res Tes Res Qua Acc Matter Collected 21106 | 283 48 1325 1459 . 298 554 920 364 427 328 27 638 1407 818 410 620 797 281 383 298 673 488 1127 739 488 138 146 30 2677 420 1783 712 Remotely 2129 | . . . . . . . . . . . . . 136 . . . . . . . . . . . . . . . 677 . 1276 40 Salvage Created 25665 | 79 135 682 2233 . 328 777 1506 465 285 247 . 481 1207 1513 836 794 1087 315 282 205 13 623 1396 729 587 455 291 271 3739 567 2223 1314 Parts 1125 | 2 2 40 121 . 18 48 80 21 8 17 . 16 44 51 30 32 49 12 8 16 1 33 85 46 6 4 14 14 165 20 78 44 Haulers Intercepted 17 | . 1 . 5 . 1 1 . . . . . . . . . 1 . 1 . . . . . . . . . . 2 1 2 2 Recyclers Shooed 10 | . . . 2 . . . . 1 . . . . . . . . . . . . . . 3 . . . . 1 2 . . 1 Parts Field Recycled . | . . . . . . . . . . . . . . . . . . . . . . . . . . . . . . . . . Retrieved Matter . | . . . . . . . . . . . . . . . . . . . . . . . . . . . . . . . . . Parts Self-Destructed 160 | . . 24 . . . . . . 8 16 3 10 . . . . . . 5 11 . 31 . 34 4 2 12 . . . . . Prevented 6 | . . . . . . . . . . . . . . . . . . . . . . . . . 6 . . . . . . . Kills | -11 -10 -10 -8 -8 -8 -7 -7 -7 -7 -7 -7 -6 -6 -6 -6 -5 -5 -5 -5 -5 -5 -4 -4 -4 -4 -4 -3 -3 -3 -2 -2 -1 ------- Run | Yrd Mat Sub Mat Gar Mat Fac Gar Fac Low Low Zio Pro Fac Gar Fac Fac Gar Fac Upp Upp War Pro Fac Upp Upp Zhi Pro Res Tes Res Qua Acc Combat Hostiles Destroyed 460 | . 2 14 38 . 5 10 32 6 5 9 . 10 27 14 16 13 27 3 13 12 2 12 28 23 4 . 4 2 55 13 40 21 Melee 3 | . . 1 . . . . . . . . . . 2 . . . . . . . . . . . . . . . . . . . Guns 247 | . 1 12 36 . 3 10 28 6 4 3 . 4 14 8 15 11 16 3 2 1 2 8 23 3 . . . . 18 5 6 5 Cannons 92 | . . 1 . . . . . . 1 2 . . 4 . . 2 . . . . . . . 9 2 . 4 1 24 3 30 9 AOE 110 | . . . 2 . 2 . 4 . . 4 . 6 7 6 1 . 11 . 11 11 . 4 4 11 . . . . 10 5 4 7 Classes Destroyed 32 | 1 2 6 6 . . 3 2 . . . . 1 2 . . . 1 . . 1 2 . . . . . . . 3 1 . 1 Worker 20 | . . . 6 . . 1 . 1 . . . . 2 . . . . . . . . . 1 . . . . . 3 . 6 . Builder 17 | . . . 1 . . 3 . . . . . . 2 . 1 . . . . . . . 1 . . . . . 5 . 4 . Tunneler 4 | . . . . . . . . . . . . . 1 . 1 . . . . . . . 2 . . . . . . . . . Hauler 17 | . 1 . 5 . 1 1 . . . . . . . . . 1 . 1 . . . . . . . . . . 2 1 2 2 Recycler 13 | 1 . . 4 . 1 1 . 2 . . . . 1 . . . . . . . . . . . . . . 1 1 . . 1 Minesweeper 2 | . . . . . . . . . . . . 1 . . . . . . . . . . . 1 . . . . . . . . Mechanic 2 | . . . . . . . . . . . . . 1 . . . . . . . . . . . . . . . . . . 1 Operator 4 | . . . . . . 1 . . . . . . . . . 2 . . . . . . . . . . . . . 1 . . Turret 2 | . . 2 . . . . . . . . . . . . . . . . . . . . . . . . . . . . . . Watcher 9 | . . . 5 . . . . . . . . . 1 . . . . 1 . . . . . . . . . . 1 . 1 . Swarmer 121 | . . 5 7 . 2 . 17 . . 5 . 6 3 3 . 4 12 . 4 12 . 4 8 15 . . . . . 3 . 11 Cutter 1 | . . . . . . . 1 . . . . . . . . . . . . . . . . . . . . . . . . . Saboteur 1 | . . . . . . . . . . . . . . . . . . . . . 1 . . . . . . . . . . . Grunt 152 | . 2 . 20 . . 7 6 4 3 2 . 2 15 6 10 2 11 . . . . 6 1 1 4 . . . 24 3 19 4 Brawler 11 | . . . . . . 1 . . 1 1 . . 2 . 1 . 2 . . . . 2 . . . . . . 1 . . . Duelist 12 | . . . 1 . . . . . . . . . . 2 . . . . 2 . . . 1 . . . . . 3 1 1 1 Protector 3 | . . . 1 . . . . . . . . . . . . . . . . . . . . . . . . . 1 . 1 . Researcher 7 | . . . . . . . . . . . . . . . . . . . . . . . . . . . . . 6 . 1 . Sentry 38 | . . 1 8 . 2 1 6 1 . 1 . 1 2 1 1 5 2 1 1 . . . 2 1 . . 1 . . . . . Demolisher 1 | . . . . . . . . . . . . . . . . . . . . . . . . . . . . . . 1 . . Specialist 5 | . . . . . . . 2 . . . . . . . . . . . 3 . . . . . . . . . . . . . Hunter 52 | . . . 1 . 1 1 . 1 1 . . 1 2 2 2 . . . 2 . . . 8 . . . 2 2 9 2 10 5 Programmer 45 | . . . . . . 1 . . . . . . 3 . 2 2 . 2 1 . . . 8 2 . . 1 . 14 . 9 . Q-Series 2 | . . . . . . . . . . . . . . . . . . . . . . . . . . . . . . . . 2 Behemoth 1 | . . . . . . . . . . . . . . . . . 1 . . . . . . . . . . . . . . . Striker 4 | . . . . . . . . . . . . . . . . . . . . . . . . . . . . . 1 3 . . Executioner 1 | . . . . . . . . . . . . . . . . . . . . . 1 . . . . . . . . . . . Alpha 7 1 | . . . . . . . . . . . . . . . . . . . . . . . . . . . . . 1 . . . Protovariant Y 1 | . . . . . . . . . . . . . . . . . . . . . . . . . . . . . 1 . . . Artisan 3 | . . 3 . . . . . . . . . . . . . . . . . . . . . . . . . . . . . . Cobbler 1 | . . 1 . . . . . . . . . . . . . . . . . . . . . . . . . . . . . . Subdweller 12 | . . 12 . . . . . . . . . . . . . . . . . . . . . . . . . . . . . . Decomposer 1 | . . . . . . . . . . . . . . . . . . . . 1 . . . . . . . . . . . . Packrat 1 | . . . . . . . . . . . . . . . . . . . . . . . . . 1 . . . . . . . Samaritan 1 | . . . . . . . . . . . . . . . . . . . . 1 . . . . . . . . . . . . Thug 1 | . . . . . . . . . . . . . . . . . . . . . . . . 1 . . . . . . . . Savage 3 | . . . . . . . . . . . . . . . . . . . . . . . . 3 . . . . . . . . Infiltrator 1 | . . . . . . . . . . . . . . . . . 1 . . . . . . . . . . . . . . . Best Kill Streak 14 | 1 2 3 9 . 3 11 9 4 4 4 . 4 7 4 5 4 14 3 6 4 1 4 6 8 4 . 2 3 8 10 10 6 Combat Bots Only 14 | . 1 3 8 . 3 8 9 3 4 4 . 4 6 4 4 4 14 2 6 4 1 4 6 8 4 . 2 2 5 10 7 5 Max Kills in Single Turn 4 | 1 1 1 3 . 2 1 3 2 1 3 . 3 2 2 2 1 4 2 3 4 1 3 4 3 1 . 1 1 4 2 3 4 Gunslinging 1 | . . . 1 . . . 1 1 . . . . . . . . . 1 . . . . 1 . . . . . . . . . Exploded 4 | . . . 1 . 2 . 3 . . 3 . 3 2 2 1 . 4 . 3 4 . 3 4 3 . . . . 2 2 2 2 Melee 1 | . . 1 . . . . . . . . . . 1 . . . . . . . . . . . . . . . . . . . Uniques/NPCs Destroyed . | . . . . . . . . . . . . . . . . . . . . . . . . . . . . . . . . . Combat | -11 -10 -10 -8 -8 -8 -7 -7 -7 -7 -7 -7 -6 -6 -6 -6 -5 -5 -5 -5 -5 -5 -4 -4 -4 -4 -4 -3 -3 -3 -2 -2 -1 -------- Run | Yrd Mat Sub Mat Gar Mat Fac Gar Fac Low Low Zio Pro Fac Gar Fac Fac Gar Fac Upp Upp War Pro Fac Upp Upp Zhi Pro Res Tes Res Qua Acc Hostile Shots Fired 3384 | . 24 85 90 . 6 67 268 51 29 48 . 73 327 132 121 69 52 12 46 31 36 68 373 111 18 . 29 15 576 41 281 305 Missed 999 | . 4 28 25 . 1 17 86 9 8 24 . 25 71 38 23 18 14 5 9 15 11 21 182 43 5 . 10 3 150 12 63 79 Intercepted 2 | . . . . . . . . . . . . . . . . . . . . . . . . . . . . . . 2 . . Damage Taken 40839 | . 273 1094 1088 . 125 344 1551 487 300 374 . 693 3855 1367 1575 1111 894 142 580 250 709 712 3159 828 127 . 219 125 8377 629 4297 5554 Core 3039 | . 43 173 83 . 25 8 205 61 23 6 . 36 314 101 56 108 89 . 81 41 55 46 284 114 . . 12 13 647 93 91 231 Absorbed by Shields 2664 | . . . . . . 279 268 . . . . . . 114 56 . 37 . 122 . . 168 493 403 134 . 174 132 284 . . . Reduced by Siege Mode 533 | . . . . . . . . . . . . . . 32 41 . 22 . . . . . . . . . . . 83 . 328 27 Redirected to Shielding 135 | . . . . . . . . . . . . . . . . . . . . . . . . . . . 31 9 95 . . . Ignored by Resistances 1224 | . . . . . . . 157 . . . . . 76 . 20 38 . . . . . . . . . . . . 97 145 691 . Regen/Repaired (Parts) 8075 | . . . . . . . . . . . . . . . . . . . . . 107 . . . . . . . 2061 404 1751 3752 Core Remaining (%) 62 | 100 . 13 . . 80 . . . . . . 51 . . 44 . . . . . . 58 . . . . 64 . 49 . 87 80 Volleys Fired 1672 | 3 24 97 93 23 16 39 84 25 30 19 . 32 98 92 43 45 66 15 48 34 43 32 72 57 14 10 34 8 247 41 128 60 Largest 3 | 2 2 2 3 1 3 3 3 3 3 3 . 3 3 3 3 3 3 3 3 2 3 3 3 3 2 1 2 2 3 2 2 2 Hottest 281 | 60 70 80 84 55 111 84 105 78 101 107 . 78 110 177 177 159 113 99 113 113 113 103 181 226 226 113 226 226 276 125 181 281 Shots Fired 3281 | 5 42 142 273 23 41 117 216 69 65 52 . 80 196 139 119 116 120 44 52 37 59 93 208 104 28 11 48 13 441 57 204 67 Gun 2378 | 5 42 79 270 23 40 117 214 66 45 40 . 72 152 132 117 109 92 43 11 6 24 91 205 32 . . . . 221 19 80 31 Cannon 784 | . . 32 . . . . . 3 20 10 . . 40 . . 7 19 . 28 24 35 . 2 65 28 11 48 13 210 35 119 35 Launcher 118 | . . 31 3 . 1 . 2 . . 2 . 7 4 7 2 . 9 1 13 7 . 2 1 7 . . . . 10 3 5 1 Special 1 | . . . . . . . . . . . . 1 . . . . . . . . . . . . . . . . . . . . Kinetic 2566 | 3 20 129 270 . 38 117 208 69 65 50 . 77 181 54 70 96 92 43 24 6 24 91 205 32 . . . . 343 52 186 21 Thermal 629 | 2 22 13 . 23 3 . 6 . . . . 1 12 78 49 20 19 . 28 24 35 . 2 65 28 11 48 13 69 . 13 45 Explosive 52 | . . . 3 . . . 2 . . 2 . 2 3 7 . . 9 1 . 7 . 2 . 7 . . . . 1 . 5 1 Electromagnetic 20 | . . . . . . . . . . . . . . . . . . . . . . . . . . . . . 20 . . . Entropic 14 | . . . . . . . . . . . . . . . . . . . . . . . 1 . . . . . 8 5 . . Robot Hit Streak 58 | 2 9 18 24 . 8 8 13 9 5 8 . 9 12 19 26 11 14 17 13 4 6 11 12 12 10 16 10 5 27 16 58 21 Robot Miss Streak 11 | 2 3 4 5 . 6 3 4 2 3 2 . 3 5 7 5 5 5 5 2 2 3 3 8 11 1 1 1 2 4 2 4 1 Penetration Max 2 | . . . 1 . 1 1 1 . 1 . . . 1 1 1 1 1 . . . 2 1 1 . . . . . 1 1 2 . Secondary Targets 32 | . . 1 4 . . 2 5 1 . . . 1 1 . 2 1 5 1 1 . 1 1 5 . . . . . . . . . Max Gunslinging Chain 1 | . . 1 1 . . 1 1 1 . . . 1 1 . 1 1 1 1 1 . 1 1 1 . . . . . . . . . Autonomous 34 | . . . . . . . . . . . . . . 34 . . . . . . . . . . . . . . . . . . Shots Hit Robots 2024 | 3 28 73 172 . 22 61 141 40 31 35 . 41 144 95 102 83 75 30 11 6 13 57 120 38 14 9 16 6 291 32 172 63 Core Hits 1182 | 2 7 35 97 . 9 33 66 18 11 15 . 24 78 70 64 65 62 11 28 19 7 30 67 37 9 7 8 5 139 20 103 36 Critical Kills 36 | . . . 2 . . 1 4 . . . . 1 1 6 . 1 1 . 1 . . 1 1 1 2 . . 1 6 3 1 2 Critical Parts Destroyed 57 | . . . 1 . . 1 3 2 1 1 . 1 . 11 1 1 . 1 . . . . 2 . . . . . 20 4 4 3 Critical Strikes 143 | . 1 . 3 . . 2 9 2 1 2 . 2 4 19 2 4 1 1 1 . . 1 3 1 2 . . 1 41 10 17 13 Burn 5 | . 1 . . . . . 1 . . . . . . 2 1 . . . . . . . . . . . . . . . . . Meltdown 5 | . . . . . . . . . . . . . . . . . . . . . . . 1 . 2 . . 1 1 . . . Destroy 91 | . . . 3 . . 2 8 2 1 1 . 2 1 17 1 2 1 1 1 . . 1 2 1 . . . . 26 8 5 5 Blast 35 | . . . . . . . . . . 1 . . 3 . . . . . . . . . . . . . . . 10 2 12 7 Corrupt 1 | . . . . . . . . . . . . . . . . . . . . . . . . . . . . . 1 . . . Sever 3 | . . . . . . . . . . . . . . . . 2 . . . . . . . . . . . . . . . 1 Sunder 3 | . . . . . . . . . . . . . . . . . . . . . . . . . . . . . 3 . . . Melee Attacks 251 | . . 152 1 . . 1 14 . . 1 1 2 9 . 1 11 11 . . . 13 . 8 . . . . . 1 . . 25 Impact 146 | . . 146 . . . . . . . . . . . . . . . . . . . . . . . . . . . . . . Slashing 80 | . . 6 1 . . 1 . . . 1 1 2 9 . 1 11 . . . . 13 . 8 . . . . . 1 . . 25 Piercing . | . . . . . . . . . . . . . . . . . . . . . . . . . . . . . . . . . Sneak Attacks 38 | . . 8 . . . . 14 . . . . . . . . 1 11 . . . . . 1 . . . . . . . . 3 Combat Hostiles 1 | . . . . . . . . . . . . . . . . 1 . . . . . . . . . . . . . . . . Follow-up Attacks . | . . . . . . . . . . . . . . . . . . . . . . . . . . . . . . . . . Damage Inflicted 80213 | 30 301 2019 4542 . 687 1554 3575 774 574 1102 . 1396 4219 2824 2688 1840 3290 898 1810 1081 561 1647 4138 2653 592 444 645 281 13567 3796 11633 5052 Guns 36231 | 30 297 708 3898 . 408 1554 3052 762 375 483 . 701 2075 1913 2351 1585 1611 898 103 65 561 1390 3058 325 . . . . 4419 474 2495 640 Cannons 22970 | . . 349 . . . . . . 199 315 . . 845 . . 136 . . . 80 . . 42 793 592 444 645 281 6689 1262 8017 2281 Explosions 18602 | . . 211 644 . 279 . 510 . . 304 . 695 985 911 337 . 1679 . 1707 936 . 257 968 1535 . . . . 2442 2052 873 1277 Melee 2019 | . . 751 . . . . . . . . . . 245 . . 105 . . . . . . 64 . . . . . . . . 854 Ramming 391 | . 4 . . . . . 13 12 . . . . 69 . . 14 . . . . . . 6 . . . . . 17 8 248 . Kinetic 52379 | 18 112 1230 3898 . 651 1554 2979 762 574 798 . 1081 2816 501 1798 1375 1611 898 1810 65 561 1390 3058 325 . . . . 8971 1736 10255 1552 Thermal 11089 | 12 185 38 . . 36 . 73 . . . . . 523 1412 890 346 . . . 80 . . 367 793 592 444 645 281 1576 . 257 2539 Explosive 8814 | . . . 644 . . . 510 . . 304 . 315 566 911 . . 1679 . . 936 . 257 . 1535 . . . . 177 . 873 107 Electromagnetic 1068 | . . . . . . . . . . . . . . . . . . . . . . . . . . . . . 1068 . . . Impact 307 | . . 307 . . . . . . . . . . . . . . . . . . . . . . . . . . . . . . Slashing 1712 | . . 444 . . . . . . . . . . 245 . . 105 . . . . . . 64 . . . . . . . . 854 Piercing . | . . . . . . . . . . . . . . . . . . . . . . . . . . . . . . . . . Entropic 4453 | . . . . . . . . . . . . . . . . . . . . . . . 643 . . . . . 1758 2052 . . Highest Corruption 38 | . . . . . . . . . . 1 1 . 18 18 20 . . 4 4 . . . 7 10 10 10 12 . 38 4 10 4 Average Corruption 11 | . . . . . . . . . . 1 1 . 14 18 18 . . 3 3 . . . 3 8 10 10 10 . 25 3 7 1 Corruption Purged 4 | . . . . . . . . . . . . . . . . . . . 4 . . . . . . . . . . . . . Corruption Blocked 51 | . . . . . . . . . . . . . . . . . . . . . . . . . . . . . 15 36 . . Effects 741 | . . . . . . . . . . 7 2 . 50 73 33 . . 10 . . . . 16 195 24 16 38 . 187 33 50 7 Message Errors 177 | . . . . . . . . . . 1 1 . 12 16 8 . . 1 . . . . 5 48 7 3 10 . 44 10 8 3 Matter Fused 170 | . . . . . . . . . . 1 1 . 12 11 7 . . 4 . . . . 4 48 6 4 12 . 39 9 11 1 Heat Flow Errors 90 | . . . . . . . . . . 2 . . 5 13 5 . . 3 . . . . 1 23 2 3 6 . 17 2 7 1 Energy Discharges 76 | . . . . . . . . . . . . . 9 9 1 . . . . . . . 2 21 2 1 2 . 20 2 7 . Parts Rejected 4 | . . . . . . . . . . . . . 2 . . . . . . . . . . . . . . . . . 2 . Parts Fused 15 | . . . . . . . . . . . . . . 2 1 . . . . . . . . 8 . . 1 . 1 2 . . Data Loss (minor) 88 | . . . . . . . . . . 2 . . 4 7 3 . . . . . . . 1 34 5 2 5 . 18 3 3 1 Data Loss (major) 30 | . . . . . . . . . . . . . 3 3 1 . . 1 . . . . 1 2 2 2 1 . 9 3 1 1 Misfires 26 | . . . . . . . . . . 1 . . 3 2 1 . . 1 . . . . . 6 . 1 . . 6 2 3 . Alerts 13 | . . . . . . . . . . . . . . 2 . . . . . . . . . 4 . . . . 6 . 1 . Misdirections 3 | . . . . . . . . . . . . . . . 1 . . . . . . . . . . . . . 2 . . . Weapon Failures 49 | . . . . . . . . . . . . . . 8 5 . . . . . . . 2 1 . . 1 . 25 . 7 . Overload Shots . | . . . . . . . . . . . . . . . . . . . . . . . . . . . . . . . . . Overflow Damage 3472 | . . 122 7 . 25 . . . . 28 . 4 81 7 30 . 28 . 6 4 . 10 . 78 23 41 11 11 787 297 1459 413 Projectiles 2553 | . . 19 . . . . . . . 28 . . . . . . . . . . . . . 15 23 41 11 11 722 224 1372 87 Explosions 507 | . . 4 7 . 25 . . . . . . 4 81 7 30 . 28 . 6 4 . 10 . 63 . . . . 65 73 1 99 Melee 412 | . . 99 . . . . . . . . . . . . . . . . . . . . . . . . . . . . 86 227 Knockbacks 133 | . . 6 . . . . . . 2 2 . . 12 . . . . . . . . . . . . . . . 39 9 52 11 Impact 1 | . . . . . . . . . . . . . . . . . . . . . . . . . . . . . . . 1 . Kinetic 113 | . . 6 . . . . . . 2 2 . . 9 . . . . . . . . . . . . . . . 38 7 40 9 Secondary 19 | . . . . . . . . . . . . . 3 . . . . . . . . . . . . . . . 1 2 11 2 Self-Inflicted Damage 1361 | . . 81 84 . . . 11 . . 40 . . 94 29 23 . . . 35 10 . . 303 50 . . . . 401 . 71 129 Shots 30 | . . 2 3 . . . 1 . . 2 . . 3 1 1 . . . 1 1 . . 4 1 . . . . 7 . 1 2 Rammed 21 | . . . . . . . 2 2 . . . . 8 . . 1 . . . . . . 1 . . . . . 2 1 4 . Targets Rammed 25 | . 1 . . . . . 2 2 . . . . 10 . . 1 . . . . . . 1 . . . . . 3 1 4 . Kicked 1 | . 1 . . . . . . . . . . . . . . . . . . . . . . . . . . . . . . . Crushed 3 | . . . . . . . . . . . . . 2 . . . . . . . . . . . . . . . 1 . . . Highest Temperature 502 | 20 226 249 147 40 126 332 392 226 366 289 . 267 402 261 197 99 . 227 211 144 303 42 229 390 359 229 179 140 502 211 205 159 Average Temperature 83 | 12 120 139 39 14 33 176 70 96 133 114 . 75 101 85 59 52 . 96 106 51 157 22 30 114 126 123 74 61 85 37 41 46 Received Heat Transfer 5755 | . 174 460 468 . . 107 322 147 117 93 . 105 795 230 502 108 207 . 27 . 123 192 98 100 44 . 17 4 661 18 423 213 Effects 16 | . 2 . . . . 1 3 3 1 . . . 1 . . . . . . . . . . 1 . . . . 3 1 . . Shutdowns 5 | . . . . . . . 3 . . . . . 1 . . . . . . . . . . . . . . . 1 . . . Energy Bleed 3 | . . . . . . . . . . . . . . . . . . . . . . . . 1 . . . . 1 1 . . Interference 6 | . 2 . . . . . . 3 1 . . . . . . . . . . . . . . . . . . . . . . . Short Circuit 1 | . . . . . . . . . . . . . . . . . . . . . . . . . . . . . 1 . . . Damage (minor) 1 | . . . . . . 1 . . . . . . . . . . . . . . . . . . . . . . . . . . Siege Activations 29 | . . . . . . . . . . . . . . 1 2 . 1 . . . . . . . . . . . 12 1 9 3 Total Turns 595 | . . . . . . . . . . . . . . 36 60 . 13 . . . . . . . . . . . 187 16 230 53 Longest Duration 43 | . . . . . . . . . . . . . . 36 36 . 13 . . . . . . . . . . . 35 16 43 32 Robots Corrupted 2 | . . . . . . . . . . . . . . . . . . . . . . . . . . . . . 2 . . . Combat Hostiles 2 | . . . . . . . . . . . . . . . . . . . . . . . . . . . . . 2 . . . Parts Fried 16 | . . 1 . . . . . . . . . . . . . . . . . . . . . . . . . . 12 . 3 . Impact Corruptions 10 | . . 3 . . . . . . . . . . . . . . . . . . . . . . . . . . . . 7 . Robots Melted 8 | . 1 . . . . . . . . . . . . 2 . . . . . . . . 1 . 2 . . 1 1 . . . Combat Hostiles 6 | . 1 . . . . . . . . . . . . . . . . . . . . . 1 . 2 . . 1 1 . . . Parts Melted 36 | . 2 . 1 . . . . . . . . . 1 9 2 2 . . . . . . 1 1 2 . 2 1 7 . . 5 Heat Transferred 13751 | 25 593 62 . . 74 . 222 . . . . . 675 2529 1782 570 . . . 74 . . 237 703 555 314 555 259 1691 . 352 2479 Parts Sabotaged 1 | . . . . . . . . . . . . . . . 1 . . . . . . . . . . . . . . . . . Parts Stolen . | . . . . . . . . . . . . . . . . . . . . . . . . . . . . . . . . . Parts Stripped . | . . . . . . . . . . . . . . . . . . . . . . . . . . . . . . . . . Power Chain Reactions 3 | . . . . . . . . . . . . . . . . . . . . . . . . . . . . . 3 . . . Alert | -11 -10 -10 -8 -8 -8 -7 -7 -7 -7 -7 -7 -6 -6 -6 -6 -5 -5 -5 -5 -5 -5 -4 -4 -4 -4 -4 -3 -3 -3 -2 -2 -1 ------- Run | Yrd Mat Sub Mat Gar Mat Fac Gar Fac Low Low Zio Pro Fac Gar Fac Fac Gar Fac Upp Upp War Pro Fac Upp Upp Zhi Pro Res Tes Res Qua Acc Peak Influence 2363 | 5 109 . 965 1565 934 462 1136 785 . . . . 506 1085 801 570 2363 1326 . . . . 658 . . . . 80 1169 861 930 1216 Initial 1240 | . 3 . 263 532 762 326 207 596 . . . . . 312 569 389 389 1240 . . . . . . . . . . 45 657 339 557 Average 609 | . 41 . 577 977 773 348 693 676 . . . . 280 710 695 449 1632 1279 . . . . 239 . . . . 14 502 696 541 795 Maximum Alert Level 5 | . . . 3 4 3 2 4 3 . . . . 2 3 3 2 5 4 . . . . 2 . . . . . 4 3 3 4 Low Security (%) 12 | 100 100 . . . . . . . . . . . 31 . . . . . . . . . 39 . . . . 100 21 . . . Level 1 18 | . . . 28 . . 74 25 . . . . . 44 3 . 18 4 . . . . . 43 . . . . . 18 . 22 . Level 2 31 | . . . 34 17 . 25 16 60 . . . . 23 37 44 81 8 . . . . . 17 . . . . . 32 56 58 42 Level 3 27 | . . . 37 48 100 . 55 39 . . . . . 59 55 . 11 . . . . . . . . . . . 18 43 18 44 Level 4 6 | . . . . 33 . . 2 . . . . . . . . . 19 100 . . . . . . . . . . 9 . . 12 Level 5 2 | . . . . . . . . . . . . . . . . . 56 . . . . . . . . . . . . . . . High Security . | . . . . . . . . . . . . . . . . . . . . . . . . . . . . . . . . . Max Security . | . . . . . . . . . . . . . . . . . . . . . . . . . . . . . . . . . Squads Dispatched 88 | . 2 . 7 . 1 5 . 3 . . . . 8 . 7 4 . 2 . . . . 7 . . . . 2 17 2 16 5 Investigation 18 | . 1 . 2 . 1 2 . 3 . . . . 2 . 1 . . 1 . . . . . . . . . 1 1 1 2 . Extermination 21 | . . . . . . 1 . . . . . . 3 . 2 1 . . . . . . 4 . . . . . 6 . 2 2 Reinforcement 28 | . 1 . . . . 2 . . . . . . 3 . 2 1 . . . . . . 1 . . . . . 8 1 7 2 Assault 10 | . . . 1 . . . . . . . . . . . 2 . . 1 . . . . 2 . . . . . 2 . 1 1 Garrison 11 | . . . 4 . . . . . . . . . . . . 2 . . . . . . . . . . . 1 . . 4 . Intercept . | . . . . . . . . . . . . . . . . . . . . . . . . . . . . . . . . . Searches Triggered . | . . . . . . . . . . . . . . . . . . . . . . . . . . . . . . . . . Construction Impeded 7 | . . . . . . . . . . . . . 2 . . . . . . . . . 1 . . . . . 2 1 1 . Haulers Reinforced 2 | . . . . . . . . . . . . . . . . . . . . . . . . . . . . . . . 2 . Active Scanning Responses . | . . . . . . . . . . . . . . . . . . . . . . . . . . . . . . . . . Cargo Convoy Interrupts . | . . . . . . . . . . . . . . . . . . . . . . . . . . . . . . . . . Stealth | -11 -10 -10 -8 -8 -8 -7 -7 -7 -7 -7 -7 -6 -6 -6 -6 -5 -5 -5 -5 -5 -5 -4 -4 -4 -4 -4 -3 -3 -3 -2 -2 -1 --------- Run | Yrd Mat Sub Mat Gar Mat Fac Gar Fac Low Low Zio Pro Fac Gar Fac Fac Gar Fac Upp Upp War Pro Fac Upp Upp Zhi Pro Res Tes Res Qua Acc Distress Signals 21 | . . . 3 . 1 . . 1 . . . . 3 . . . . . . . . . 3 . . . . . 2 6 1 1 Communications Jammed . | . . . . . . . . . . . . . . . . . . . . . . . . . . . . . . . . . Distress Signals . | . . . . . . . . . . . . . . . . . . . . . . . . . . . . . . . . . Times Spotted 713 | . 6 76 51 . 11 16 37 9 5 10 . 11 43 14 24 19 49 4 14 12 19 11 29 21 4 . 4 3 92 25 56 38 Peak Tracking Total 12 | . 3 4 5 . 3 6 6 4 4 4 . 4 8 4 5 5 8 2 7 5 12 4 6 5 4 . 2 2 6 9 8 8 Tactical Retreats 31 | . . 2 2 . . 1 3 1 . . . 1 4 . . 3 1 . 2 . 1 1 2 . . . . . 3 . 1 3 Traps | -11 -10 -10 -8 -8 -8 -7 -7 -7 -7 -7 -7 -6 -6 -6 -6 -5 -5 -5 -5 -5 -5 -4 -4 -4 -4 -4 -3 -3 -3 -2 -2 -1 ------- Run | Yrd Mat Sub Mat Gar Mat Fac Gar Fac Low Low Zio Pro Fac Gar Fac Fac Gar Fac Upp Upp War Pro Fac Upp Upp Zhi Pro Res Tes Res Qua Acc Traps Triggered 27 | . . . . 3 . 2 9 . . . . . 2 4 . 1 2 . . . . . 1 . . . . . 3 . . . Indirectly . | . . . . . . . . . . . . . . . . . . . . . . . . . . . . . . . . . Trap Hack Attempts 3 | . . . . . . . . . . . . . . . . . . . . . . . 3 . . . . . . . . . Triggered . | . . . . . . . . . . . . . . . . . . . . . . . . . . . . . . . . . Disarmed 1 | . . . . . . . . . . . . . . . . . . . . . . . 1 . . . . . . . . . Reprogrammed . | . . . . . . . . . . . . . . . . . . . . . . . . . . . . . . . . . Reused 6 | . . . . . . . . . . . . . 4 . . 2 . . . . . . . . . . . . . . . . Traps Extracted 10 | . . . . . . . . . 3 . . . . . . . . . . 6 1 . . . . . . . . . . . Installed 7 | . . . . . . . . . . . . . 4 . . 2 . . . . 1 . . . . . . . . . . . Triggered 31 | . . . . . . . . . . . . . 4 . . 2 . . . . 23 . . . 2 . . . . . . . Most Traps Carried 13 | . . . . . . . . . 3 3 3 13 13 9 9 9 7 7 7 11 10 8 8 8 8 8 8 8 8 8 8 8 Machines | -11 -10 -10 -8 -8 -8 -7 -7 -7 -7 -7 -7 -6 -6 -6 -6 -5 -5 -5 -5 -5 -5 -4 -4 -4 -4 -4 -3 -3 -3 -2 -2 -1 ---------- Run | Yrd Mat Sub Mat Gar Mat Fac Gar Fac Low Low Zio Pro Fac Gar Fac Fac Gar Fac Upp Upp War Pro Fac Upp Upp Zhi Pro Res Tes Res Qua Acc Machines Disabled 76 | . . 2 3 5 2 2 3 . . . . . 7 7 2 . 8 . 2 . 1 . 9 . . . . . 14 3 4 2 Max in Single Turn 5 | . . 1 1 1 . 1 1 . . . . . 5 2 2 . 2 . 1 . 1 . 4 . . . . . 1 1 1 1 Garrison Access 5 | . . . . . . . . . . . . . . . . . . . . . . . 1 . . . . . 1 2 1 . Garrison Relay 13 | . . . . 4 . . 3 . . . . . . 4 . . 2 . . . . . . . . . . . . . . . Phase Generator 3 | . . . . 1 . . . . . . . . . 1 . . 1 . . . . . . . . . . . . . . . Machines Repaired . | . . . . . . . . . . . . . . . . . . . . . . . . . . . . . . . . . Machines Dismantled . | . . . . . . . . . . . . . . . . . . . . . . . . . . . . . . . . . Machines Sabotaged . | . . . . . . . . . . . . . . . . . . . . . . . . . . . . . . . . . Overloaded Fab Kills . | . . . . . . . . . . . . . . . . . . . . . . . . . . . . . . . . . Hacking | -11 -10 -10 -8 -8 -8 -7 -7 -7 -7 -7 -7 -6 -6 -6 -6 -5 -5 -5 -5 -5 -5 -4 -4 -4 -4 -4 -3 -3 -3 -2 -2 -1 --------- Run | Yrd Mat Sub Mat Gar Mat Fac Gar Fac Low Low Zio Pro Fac Gar Fac Fac Gar Fac Upp Upp War Pro Fac Upp Upp Zhi Pro Res Tes Res Qua Acc Machines Accessed 76 | . 4 1 9 2 1 6 . 4 1 1 . . 6 1 2 1 2 3 1 1 4 . 3 . . 4 . 1 6 1 8 3 Terminals 43 | . 4 . 7 2 1 4 . 3 . 1 . . 3 1 1 . 2 3 . . . . 1 . . . . . 2 1 6 1 Fabricators 5 | . . . . . . 1 . . . . . . 2 . . . . . . . . . . . . . . . 2 . . . Repair Stations 4 | . . . . . . . . . . . . . . . 1 . . . . . . . . . . . . . 1 . 1 1 Recycling Units 3 | . . . 1 . . . . 1 . . . . . . . . . . . . . . 1 . . . . . . . . . Scanalyzers . | . . . . . . . . . . . . . . . . . . . . . . . . . . . . . . . . . Garrison Access 9 | . . . 1 . . 1 . . . . . . 1 . . 1 . . . . . . 1 . . . . 1 1 . 1 1 Total Hacks 221 | . 9 6 29 8 6 20 . 9 1 1 . . 13 2 5 1 4 12 1 1 19 . 12 . . 17 . 2 19 2 17 5 Successful 122 | . 2 6 11 2 4 10 . 5 1 1 . . 5 1 2 1 3 4 1 1 19 . 9 . . 17 . . 8 . 8 1 Failed 98 | . 7 . 17 6 2 10 . 4 . . . . 8 1 3 . 1 8 . . . . 3 . . . . 2 11 2 9 4 Catastrophic 25 | . 1 . 4 . . . . . . . . . 3 . 1 . . 3 . . . . 1 . . . . 1 2 2 4 3 Database Lockouts 1 | . . . 1 . . . . . . . . . . . . . . . . . . . . . . . . . . . . . Manual 61 | . 2 . 16 3 2 8 . 3 . . . . 3 . . . 2 3 1 . . . 6 . . . . . 3 2 6 1 Terminals 116 | . 9 . 26 8 6 12 . 7 . 1 . . 5 2 2 . 4 12 . . . . 3 . . . . . 3 2 12 2 Fabricators 25 | . . . . . . 7 . . . . . . 7 . . . . . . . . . . . . . . . 11 . . . Repair Stations 8 | . . . . . . . . . . . . . . . 3 . . . . . . . . . . . . . 2 . 2 1 Recycling Units 10 | . . . 2 . . . . 2 . . . . . . . . . . . . . . 6 . . . . . . . . . Scanalyzers . | . . . . . . . . . . . . . . . . . . . . . . . . . . . . . . . . . Garrison Access 17 | . . . 1 . . 1 . . . . . . 1 . . 1 . . . . . . 3 . . . . 2 3 . 3 2 Terminal Hacks 86 | . 1 6 9 2 4 4 . 3 1 1 . . 2 1 . . 2 4 1 1 19 . 2 . . 17 . . 1 . 5 . Record 20 | . . 6 . . . . . . . 1 . . . . . . . 1 . . 5 . . . . 5 . . . . 2 . Part Schematic 4 | . . . . . . . . . . . . . . . . . . . . . . . . . . 4 . . . . . . Robot Analysis 6 | . . . 2 . . . . . . . . . . . . . . . . . . . . . . 4 . . . . . . Prototype ID Bank 20 | . 1 . 1 . . . . . . . . . . . . . . . . . 13 . 1 . . 4 . . . . . . Open Door 5 | . . . . . . . . . 1 . . . . . . . 1 . 1 1 1 . . . . . . . . . . . Branch Access Points 5 | . . . . . 1 1 . 1 . . . . . . . . . 1 . . . . 1 . . . . . . . . . Emergency Access Points 3 | . . . . 1 . . . . . . . . . 1 . . 1 . . . . . . . . . . . . . . . Terminal Index 2 | . . . . . . . . 1 . . . . . . . . . 1 . . . . . . . . . . . . . . Alert Level 9 | . . . 1 . 1 1 . 1 . . . . 1 . . . . 1 . . . . . . . . . . 1 . 2 . Unreport Threat 4 | . . . 1 . 1 1 . . . . . . . . . . . . . . . . . . . . . . . . 1 . Locate Traps 1 | . . . 1 . . . . . . . . . . . . . . . . . . . . . . . . . . . . . Surveillance Status 1 | . . . 1 . . . . . . . . . . . . . . . . . . . . . . . . . . . . . Hauler Manifests 3 | . . . 1 . 1 . . . . . . . 1 . . . . . . . . . . . . . . . . . . . Zone Layout 2 | . . . 1 . . 1 . . . . . . . . . . . . . . . . . . . . . . . . . . Patrol Navigation 1 | . . . . 1 . . . . . . . . . . . . . . . . . . . . . . . . . . . . Fabricator Hacks 7 | . . . . . . 2 . . . . . . 2 . . . . . . . . . . . . . . . 3 . . . Network Status 3 | . . . . . . 1 . . . . . . 1 . . . . . . . . . . . . . . . 1 . . . Load Schematic 2 | . . . . . . . . . . . . . 1 . . . . . . . . . . . . . . . 1 . . . Build 2 | . . . . . . 1 . . . . . . . . . . . . . . . . . . . . . . 1 . . . Repair Station Hacks 5 | . . . . . . . . . . . . . . . 2 . . . . . . . . . . . . . 2 . 1 . Scan Component 3 | . . . . . . . . . . . . . . . 1 . . . . . . . . . . . . . 1 . 1 . Repair 2 | . . . . . . . . . . . . . . . 1 . . . . . . . . . . . . . 1 . . . Recycling Unit Hacks 3 | . . . 1 . . . . . . . . . . . . . . . . . . . 2 . . . . . . . . . Retrieve Matter 1 | . . . . . . . . . . . . . . . . . . . . . . . 1 . . . . . . . . . Retrieve Components 2 | . . . 1 . . . . . . . . . . . . . . . . . . . 1 . . . . . . . . . Scanalyzer . | . . . . . . . . . . . . . . . . . . . . . . . . . . . . . . . . . Garrison Access Hacks 7 | . . . 1 . . 1 . . . . . . 1 . . 1 . . . . . . 1 . . . . . . . 1 1 Unlock Access 5 | . . . 1 . . 1 . . . . . . 1 . . 1 . . . . . . . . . . . . . . . 1 Seal Access 2 | . . . . . . . . . . . . . . . . . . . . . . . 1 . . . . . . . 1 . Unauthorized Hacks 14 | . 1 . . . . 3 . 2 . . . . . . . . 1 . . . . . 4 . . . . . 2 . 1 . Terminals 5 | . 1 . . . . 1 . 1 . . . . . . . . 1 . . . . . . . . . . . . . 1 . Botnet 5 | . 1 . . . . 1 . 1 . . . . . . . . 1 . . . . . . . . . . . . . 1 . Fabricators 4 | . . . . . . 2 . . . . . . . . . . . . . . . . . . . . . . 2 . . . Prioritize 1 | . . . . . . . . . . . . . . . . . . . . . . . . . . . . . 1 . . . Liberate 1 | . . . . . . 1 . . . . . . . . . . . . . . . . . . . . . . . . . . Fabnet 2 | . . . . . . 1 . . . . . . . . . . . . . . . . . . . . . . 1 . . . Repair Stations . | . . . . . . . . . . . . . . . . . . . . . . . . . . . . . . . . . Recycling Units 5 | . . . . . . . . 1 . . . . . . . . . . . . . . 4 . . . . . . . . . Monitor 1 | . . . . . . . . . . . . . . . . . . . . . . . 1 . . . . . . . . . Reject 1 | . . . . . . . . . . . . . . . . . . . . . . . 1 . . . . . . . . . Recyclers 1 | . . . . . . . . . . . . . . . . . . . . . . . 1 . . . . . . . . . Mask 1 | . . . . . . . . . . . . . . . . . . . . . . . 1 . . . . . . . . . Tunnel 1 | . . . . . . . . 1 . . . . . . . . . . . . . . . . . . . . . . . . Scanalyzers . | . . . . . . . . . . . . . . . . . . . . . . . . . . . . . . . . . Garrison Access . | . . . . . . . . . . . . . . . . . . . . . . . . . . . . . . . . . Data Cores Recovered 2 | . . . . . . 1 . . . . . . . . . . . . . . . . . . . . . . . . . 1 Used . | . . . . . . . . . . . . . . . . . . . . . . . . . . . . . . . . . Hacking Detections 55 | . 4 . 8 2 1 6 . 3 . . . . 5 1 1 . 1 3 . . . . 3 . . . . 1 5 1 7 3 Full Trace Events 17 | . 1 . 2 2 . 2 . 2 . . . . 1 . 1 . 1 1 . . . . . . . . . 1 . 1 2 . Feedback Events 1 | . . . . . . . . . . . . . . . . . . . . . . . . . . . . . . 1 . . Corruption 1 | . . . . . . . . . . . . . . . . . . . . . . . . . . . . . . 1 . . Feedback Blocked . | . . . . . . . . . . . . . . . . . . . . . . . . . . . . . . . . . Robot Schematics Acquired 9 | . . . . . . . . . . . 3 . . . . . . . . . . . . . . . . . 5 . 1 . Robots Built 1 | . . . . . . 1 . . . . . . . . . . . . . . . . . . . . . . . . . . Authchips . | . . . . . . . . . . . . . . . . . . . . . . . . . . . . . . . . . Time 81 | . . . . . . 81 . . . . . . . . . . . . . . . . . . . . . . . . . . Total Robot Build Rating 1 | . . . . . . 1 . . . . . . . . . . . . . . . . . . . . . . . . . . Part Schematics Acquired 29 | . . . . . . . . . . . 16 . . . . . . . . . . . . . . 4 . . 6 . 3 . Parts Built 2 | . . . . . . . . . . . . . . . . . . . . . . . . . . . . . 2 . . . Authchips . | . . . . . . . . . . . . . . . . . . . . . . . . . . . . . . . . . Time 139 | . . . . . . . . . . . . . . . . . . . . . . . . . . . . . 139 . . . Total Part Build Rating 18 | . . . . . . . . . . . . . . . . . . . . . . . . . . . . . 18 . . . Parts Repaired . | . . . . . . . . . . . . . . . . . . . . . . . . . . . . . . . . . Time 128 | . . . . . . . . . . . . . . . 50 . . . . . . . . . . . . . 78 . . . Parts Recycled . | . . . . . . . . . . . . . . . . . . . . . . . . . . . . . . . . . Recycled Matter . | . . . . . . . . . . . . . . . . . . . . . . . . . . . . . . . . . Retrieved Matter . | . . . . . . . . . . . . . . . . . . . . . . . . . . . . . . . . . Retrieved Components 2 | . . . 1 . . . . . . . . . . . . . . . . . . . 1 . . . . . . . . . Parts Scanalyzed . | . . . . . . . . . . . . . . . . . . . . . . . . . . . . . . . . . Part Schematics Acquired . | . . . . . . . . . . . . . . . . . . . . . . . . . . . . . . . . . Parts Damaged . | . . . . . . . . . . . . . . . . . . . . . . . . . . . . . . . . . Bothacking | -11 -10 -10 -8 -8 -8 -7 -7 -7 -7 -7 -7 -6 -6 -6 -6 -5 -5 -5 -5 -5 -5 -4 -4 -4 -4 -4 -3 -3 -3 -2 -2 -1 ------------ Run | Yrd Mat Sub Mat Gar Mat Fac Gar Fac Low Low Zio Pro Fac Gar Fac Fac Gar Fac Upp Upp War Pro Fac Upp Upp Zhi Pro Res Tes Res Qua Acc Used RIF Installer . | . . . . . . . . . . . . . . . . . . . . . . . . . . . . . . . . . Robots Hacked 18 | . . . . . . . . . . . . . 2 . 2 1 4 . 1 . . . . . . . . . . 6 . 2 Non-combat . | . . . . . . . . . . . . . . . . . . . . . . . . . . . . . . . . . Combat 18 | . . . . . . . . . . . . . 2 . 2 1 4 . 1 . . . . . . . . . . 6 . 2 Robot Hacks Applied 1 | . . . . . . . . . . . . . . . . . 1 . . . . . . . . . . . . . . . parse_system 1 | . . . . . . . . . . . . . . . . . 1 . . . . . . . . . . . . . . . Relay Couplers Released 54 | . . . . 15 . . 11 . . . . . . 17 . . 7 . . . . . . . . . . . 1 3 . . Machine Destruction 54 | . . . . 15 . . 11 . . . . . . 17 . . 7 . . . . . . . . . . . 1 3 . . Fabnet Peak Effective % 3 | . . . . . . . . . . . . 3 3 3 3 1 1 1 1 1 1 . . . . . . . . 3 3 1 Autooverrided 17 | . . . . . . . . . . . . . 2 . 2 1 3 . 1 . . . . . . . . . . 6 . 2 Robots Rewired 20 | . . . . 5 . . 7 . . . . . . . . . 8 . . . . . . . . . . . . . . . Allies Hacked 2 | . . . . . . . . . . . . . . . . . . 1 . . . . . . . . . . . 1 . . Hacks Repelled . | . . . . . . . . . . . . . . . . . . . . . . . . . . . . . . . . . Allies | -11 -10 -10 -8 -8 -8 -7 -7 -7 -7 -7 -7 -6 -6 -6 -6 -5 -5 -5 -5 -5 -5 -4 -4 -4 -4 -4 -3 -3 -3 -2 -2 -1 -------- Run | Yrd Mat Sub Mat Gar Mat Fac Gar Fac Low Low Zio Pro Fac Gar Fac Fac Gar Fac Upp Upp War Pro Fac Upp Upp Zhi Pro Res Tes Res Qua Acc Total Allies 63 | . . 19 . 5 . 1 7 . . . . . 2 . 2 1 14 . 1 . . . . . . . . . . 6 . 5 Largest Group 9 | . . 9 4 5 5 3 4 3 . . . . 1 . 1 1 7 3 1 . . . . . . . . . . 1 . 3 Highest-Rated Group 379 | . . 171 76 83 83 50 56 36 . . . . 29 . 41 12 375 90 12 . . . . . . . . . . 64 . 379 Highest-Rated Ally 179 | . . 20 19 21 21 21 14 12 . . . . 29 . 41 12 179 30 12 . . . . . . . . . . 64 . 135 Total Orders 28 | . . . . 9 . . . . 2 1 2 . . . . . 3 . . . . . . . . . . . 7 . 4 . STAY 3 | . . . . 1 . . . . . . . . . . . . 2 . . . . . . . . . . . . . . . FOLLOW 3 | . . . . 1 . . . . . . . . . . . . 1 . . . . . . . . . . . . . 1 . EXPLORE 7 | . . . . 3 . . . . 1 1 1 . . . . . . . . . . . . . . . . . . . 1 . RETURN 15 | . . . . 4 . . . . 1 . 1 . . . . . . . . . . . . . . . . . 7 . 2 . Ally Attacks 311 | . . 70 8 . 52 19 4 6 . . . . 8 . 2 7 94 7 2 . . . . . . . . . . 5 . 27 Total Damage 7956 | . . 901 117 . 685 387 . 62 . . . . 114 . 67 48 3583 130 32 . . . . . . . . . . 232 . 1598 Kills 48 | . . 10 . . 3 4 . 1 . . . . . . . 1 24 . . . . . . . . . . . . . . 5 Allies Corrupted . | . . . . . . . . . . . . . . . . . . . . . . . . . . . . . . . . . Allies Melted 6 | . . . . . . . . . . . . . . . . . 1 . . . 1 . . . . . . . . 4 . . Intel | -11 -10 -10 -8 -8 -8 -7 -7 -7 -7 -7 -7 -6 -6 -6 -6 -5 -5 -5 -5 -5 -5 -4 -4 -4 -4 -4 -3 -3 -3 -2 -2 -1 ------- Run | Yrd Mat Sub Mat Gar Mat Fac Gar Fac Low Low Zio Pro Fac Gar Fac Fac Gar Fac Upp Upp War Pro Fac Upp Upp Zhi Pro Res Tes Res Qua Acc Robot Analysis Total 6 | . . . 2 . . . . . . . . . . . . . . . . . . . . . . 4 . . . . . . Derelict Logs Recovered 12 | . . 2 . . . . . . 2 2 1 1 . . . . . . 1 . . . . 2 1 . . . . . . . Drone Launches 17 | . . . . 3 . . . . 1 1 1 . . . . . . . . . . . . . . . . . 7 . 4 . Drone Recoveries 14 | . . . . 3 . . . . . . 1 . . . . . . . . . . . . . . . . . 7 . 3 . Decoded 0b10 Intel 23 | . . . . . . . . . . . . . 21 2 . . . . . . . . . . . . . . . . . . Garrisons 1 | . . . . . . . . . . . . . 1 . . . . . . . . . . . . . . . . . . . Patrols 7 | . . . . . . . . . . . . . 5 2 . . . . . . . . . . . . . . . . . . Investigations 3 | . . . . . . . . . . . . . 3 . . . . . . . . . . . . . . . . . . . Reinforcements 6 | . . . . . . . . . . . . . 6 . . . . . . . . . . . . . . . . . . . Guards 6 | . . . . . . . . . . . . . 6 . . . . . . . . . . . . . . . . . . . Exploration | -11 -10 -10 -8 -8 -8 -7 -7 -7 -7 -7 -7 -6 -6 -6 -6 -5 -5 -5 -5 -5 -5 -4 -4 -4 -4 -4 -3 -3 -3 -2 -2 -1 ------------- Run | Yrd Mat Sub Mat Gar Mat Fac Gar Fac Low Low Zio Pro Fac Gar Fac Fac Gar Fac Upp Upp War Pro Fac Upp Upp Zhi Pro Res Tes Res Qua Acc Turns Passed 54178 | 72 762 6311 1897 1370 583 1099 1334 528 1762 1174 2292 2047 1735 1493 637 988 1089 401 2593 2295 2247 1076 1311 6314 674 520 1217 263 3906 1756 1251 1181 Spaces Moved 19173 | 44 162 3057 864 523 204 450 578 194 486 319 782 655 598 493 190 368 504 189 872 577 631 584 461 1083 244 191 452 92 1351 965 494 516 Core 284 | 6 . . . . . . . . . . . . . . . . . . . . . . 1 277 . . . . . . . . Treads 15155 | 2 . 3051 864 523 204 203 3 150 486 319 782 655 454 342 190 368 504 189 872 577 455 584 395 . . . . . 1008 965 494 516 Legs 1950 | 36 162 6 . . . . . . . . . . . . . . . . . . 176 . . 805 13 93 452 92 115 . . . Wheels 1784 | . . . . . . 247 575 44 . . . . 144 151 . . . . . . . . 65 1 231 98 . . 228 . . . Hover . | . . . . . . . . . . . . . . . . . . . . . . . . . . . . . . . . . Flight . | . . . . . . . . . . . . . . . . . . . . . . . . . . . . . . . . . Fastest Speed 50 | 50 120 120 150 161 241 160 145 145 250 250 250 250 164 160 160 160 160 160 162 243 164 165 165 185 250 220 195 195 120 153 153 145 Average Speed 221 | 114 120 159 160 238 247 200 158 226 250 250 250 250 231 233 238 160 160 162 172 335 321 165 199 543 252 249 232 248 218 166 153 147 Slowest Speed 2650 | 160 120 160 161 241 250 250 650 250 250 250 250 250 325 570 240 160 160 243 243 405 405 165 2650 2000 410 266 266 265 610 231 153 225 Overloaded Moves . | . . . . . . . . . . . . . . . . . . . . . . . . . . . . . . . . . Propulsion Burnouts . | . . . . . . . . . . . . . . . . . . . . . . . . . . . . . . . . . Robots Hopped 1 | . . . . . . 1 . . . . . . . . . . . . . . . . . . . . . . . . . . Cave-ins Triggered 1 | . . . . . . . . . . . . . . . . . . . . . . . . . . . . . 1 . . . Teleports 1 | . . . . . . . . . . . . . . . . . . . . . . . . . . . . . . . . 1 Exploration Rate (%) 52 | 5 36 96 69 98 24 13 68 5 93 97 86 73 23 63 8 12 70 4 65 75 78 73 14 92 50 60 69 5 98 25 70 15 Regions Visited 32 Branch Regions 15 Pre-discovered Areas 10 | . . . . . . . . 1 3 1 1 . . . . . . . 1 . . . . . . 3 . . . . . . Known Exits Taken 9 | . . . 1 . . 1 . 1 . . . . 1 . . 1 . 1 . . . . 1 . . . . 1 1 . . . Unknown Exits Taken 19 | 1 1 1 . . 1 . . . 1 1 1 1 . . 1 . . . 1 1 1 1 . 1 1 1 1 . . 1 1 . Scrap Searched 43 | . . 12 . . . . . . 7 2 4 3 . . . . . . 4 4 . 2 . 2 1 . 2 . . . . . Spaces Dug 882 | . . 317 1 . 14 1 1 1 8 13 . 2 70 17 1 8 10 9 39 42 30 31 78 32 2 . 5 3 48 11 4 84 Terrain Destroyed 2333 | . . 563 33 82 19 3 17 3 15 17 . 46 107 143 17 11 125 12 141 90 38 68 164 157 13 . 30 6 118 48 55 192 Melee 81 | . . 40 1 . . 1 . . . 1 . 2 2 . 1 8 . . . . 7 . 7 . . . . . 1 . . 10 Projectile 442 | . . 4 2 . 5 1 12 3 15 4 . 2 18 . . 3 4 3 30 13 31 37 34 55 13 . 30 6 69 16 22 10 AOE 1801 | . . 519 28 82 14 . 4 . . 12 . 42 87 141 16 . 119 9 111 77 . 31 123 102 . . . . 47 32 33 172 Terrain Rammed . | . . . . . . . . . . . . . . . . . . . . . . . . . . . . . . . . . Walls Destroyed . | . . . . . . . . . . . . . . . . . . . . . . . . . . . . . . . . . Machines Disabled . | . . . . . . . . . . . . . . . . . . . . . . . . . . . . . . . . . Actions | -11 -10 -10 -8 -8 -8 -7 -7 -7 -7 -7 -7 -6 -6 -6 -6 -5 -5 -5 -5 -5 -5 -4 -4 -4 -4 -4 -3 -3 -3 -2 -2 -1 --------- Run | Yrd Mat Sub Mat Gar Mat Fac Gar Fac Low Low Zio Pro Fac Gar Fac Fac Gar Fac Upp Upp War Pro Fac Upp Upp Zhi Pro Res Tes Res Qua Acc Total 28015 | 58 690 4159 1165 625 251 553 824 256 1001 673 1119 1029 800 707 274 652 668 254 1925 897 786 633 677 1432 275 227 572 118 1993 1072 817 833 Wait 5663 | . 495 790 147 31 9 45 96 25 471 325 332 307 30 68 21 175 50 18 982 273 22 14 73 238 11 . 81 14 182 21 146 171 Move 19138 | 43 161 3056 864 521 203 448 576 193 485 318 781 654 598 491 189 368 503 188 871 576 630 583 460 1082 243 190 451 91 1349 964 493 515 Hop 1 | . . . . . . 1 . . . . . . . . . . . . . . . . . . . . . . . . . . Pick Up 230 | 2 4 11 10 7 6 5 3 4 5 2 1 6 7 9 6 9 8 10 6 2 15 . 7 20 3 5 2 1 31 6 8 9 Fast Attach 203 | 8 1 6 15 1 1 6 4 . . . 1 4 11 7 3 8 . 2 2 1 14 . 12 8 3 7 . 1 39 10 12 16 Attach 163 | . . 2 3 . 1 2 7 4 . 1 . 6 17 10 3 6 1 2 3 1 4 1 9 9 . 4 2 2 37 5 7 14 Detach 85 | 2 . 2 3 1 . 2 1 . . . . 3 4 8 1 3 . 1 1 . 2 . 6 5 . 4 1 1 22 3 3 6 Swap 237 | . 3 27 14 2 6 3 5 3 7 6 1 9 10 8 6 12 18 5 6 8 12 3 15 3 . . 1 . 32 5 5 2 Drop 251 | . 1 16 13 6 9 1 1 . 3 1 2 6 2 2 1 12 6 13 6 2 30 . 11 10 1 7 . . 47 16 11 15 Fire 1672 | 3 24 97 93 23 16 39 84 25 30 19 . 32 98 92 43 45 66 15 48 34 43 32 72 57 14 10 34 8 247 41 128 60 Melee 251 | . . 152 1 . . 1 14 . . 1 1 2 9 . 1 11 11 . . . 13 . 8 . . . . . 1 . . 25 Ram 2 | . . . . . . . 2 . . . . . . . . . . . . . . . . . . . . . . . . . Kick 1 | . 1 . . . . . . . . . . . . . . . . . . . . . . . . . . . . . . . Crush 22 | . . . . . . . . 2 . . . . 10 . . 1 . . . . . . 1 . . . . . 3 1 4 . Escape Stasis 41 | . . . . . . . 26 . . . . . . 12 . . . . . . . . . . . . . . 3 . . . Rewire 43 | . . . . 33 . . 5 . . . . . . . . . 5 . . . . . . . . . . . . . . . Trap 10 | . . . . . . . . . . . . . 4 . . 2 . . . . 1 . 3 . . . . . . . . . Miscellaneous 2 | . . . 2 . . . . . . . . . . . . . . . . . . . . . . . . . . . . . Route ------- -11/Scrapyard -10/Materials -10/Subcaves (discovered 3 exits: *Mat x2 / [*Rec]) -8/Materials (discovered 2 exits: *Fac / Gar) -8/Garrison (discovered 3 exits: *Mat x3) -8/Materials -7/Factory (discovered 4 exits: Sto / *Low x2 / Gar) -7/Garrison (discovered 3 exits: *Fac x3) -7/Factory (discovered 5 exits: *Fac / Sto x2 / *Low x2) -7/Lower Caves -7/Lower Caves (discovered 2 exits: *Fac / [*Zio]) -7/Zion -6/Proximity Caves -6/Factory (discovered 3 exits: *Fac x2 / Gar) -6/Garrison (discovered 2 exits: *Fac x2) -6/Factory -5/Factory (discovered 2 exits: Upp / Gar) -5/Garrison (discovered 2 exits: *Fac x2) -5/Factory (discovered 2 exits: *Upp x2) -5/Upper Caves -5/Upper Caves (discovered 2 exits: *Fac / *War) -5/Warlord -4/Proximity Caves -4/Factory (discovered 6 exits: *Res / *Upp x2 / Ext x2 / Arm) -4/Upper Caves -4/Upper Caves (discovered 2 exits: *Res / *Zhi) -4/Zhirov -3/Proximity Caves -3/Research (discovered 2 exits: Res / *Tes) -3/Testing -2/Research (discovered 2 exits: *Acc / *Qua) -2/Quarantine -1/Access (discovered 3 exits: *Sur / Com / Gar) To Epsilon Eridani History --------- Turn | Location | Event 17 | -11/Scrapyard | Discovered new exit (range 15) 73 | -11/Scrapyard | Entered Materials 317 | -10/Materials | Build established: Mutant 809 | -10/Materials | Discovered new exit (range 8) 835 | -10/Materials | Entered Subcaves 974 | -10/Subcaves | Disturbed a concealed Subdweller 1018 | -10/Subcaves | Core integrity fell below 50% 1231 | -10/Subcaves | Ambushed by Subdweller buried in earth 1982 | -10/Subcaves | Ambushed by angry Subdweller bent on revenge 2224 | -10/Subcaves | Visited triangular shrine 2241 | -10/Subcaves | Found Prototype Device 2241 | -10/Subcaves | Identified V3-11A's Pendant 2246 | -10/Subcaves | Befriended Subdweller 2312 | -10/Subcaves | Befriended Subdweller 2355 | -10/Subcaves | A swath of the cavern ceiling suddenly collapsed 2876 | -10/Subcaves | Befriended Subdweller 2876 | -10/Subcaves | Befriended Subdweller 2995 | -10/Subcaves | Shifting Twisted Machinery released Sub. Machine Gun 3023 | -10/Subcaves | A Subdweller sparked back to life 3023 | -10/Subcaves | A Subdweller sparked back to life 3023 | -10/Subcaves | A Subdweller sparked back to life 3026 | -10/Subcaves | Befriended Subdweller 3026 | -10/Subcaves | Befriended Subdweller 3051 | -10/Subcaves | Found Prototype Device 3079 | -10/Subcaves | Discovered new exit (range 9) 3085 | -10/Subcaves | Learned 2 Materials zone layouts 3087 | -10/Subcaves | Discovered new exit (range 10) 3091 | -10/Subcaves | Befriended Subdweller 3091 | -10/Subcaves | Befriended Subdweller 3196 | -10/Subcaves | Discovered new exit (range 13) 3241 | -10/Subcaves | Lost 3 allies 3388 | -10/Subcaves | Shifting Twisted Machinery released Sub. Optics 3391 | -10/Subcaves | Shifting Twisted Machinery released Sub. Beam Cannon 3459 | -10/Subcaves | Befriended Subdweller 3759 | -10/Subcaves | Shifting Twisted Machinery released Sub. Machine Gun 4500 | -10/Subcaves | Ambushed by Subdweller buried in earth 4500 | -10/Subcaves | Ambushed by Subdweller buried in earth 4504 | -10/Subcaves | Befriended Subdweller 4504 | -10/Subcaves | Befriended Subdweller 4504 | -10/Subcaves | Befriended Subdweller 4524 | -10/Subcaves | Ambushed by Subdweller buried in earth 4531 | -10/Subcaves | Ambushed by Subdweller buried in earth 4544 | -10/Subcaves | Ambushed by Subdweller buried in earth 4549 | -10/Subcaves | Befriended Subdweller 4650 | -10/Subcaves | Core integrity fell below 20% 4814 | -10/Subcaves | Befriended Subdweller 4815 | -10/Subcaves | Ambushed by Subdweller buried in earth 4819 | -10/Subcaves | Befriended Subdweller 4832 | -10/Subcaves | Ambushed by Subdweller buried in earth 4832 | -10/Subcaves | Ambushed by Subdweller buried in earth 4834 | -10/Subcaves | Befriended Subdweller 4834 | -10/Subcaves | Befriended Subdweller 4999 | -10/Subcaves | Visited Clippyterm 5004 | -10/Subcaves | Learned Factory garrison access intel 5004 | -10/Subcaves | Learned Research security intel 5078 | -10/Subcaves | Shifting Twisted Machinery released Piercing Trap 5079 | -10/Subcaves | Shifting Twisted Machinery released Battle Rifle 5129 | -10/Subcaves | A swath of the cavern ceiling suddenly collapsed 5278 | -10/Subcaves | Disturbed a concealed Subdweller 5279 | -10/Subcaves | Befriended Subdweller 6049 | -10/Subcaves | Lost 4 allies 7003 | -10/Subcaves | Ambushed by Subdweller buried in earth 7016 | -10/Subcaves | Ambushed by Subdweller buried in earth 7020 | -10/Subcaves | Befriended Subdweller 7146 | -10/Subcaves | Entered Materials 7146 | -8/Materials | Accompanied by 4 allies 7146 | -8/Materials | Evolved 4 slots: Propulsion x1, Utility x2, Weapon x1 7279 | -8/Materials | Garrison activated, responded to threat 7281 | -8/Materials | Lost 3 allies 7443 | -8/Materials | Garrison activated, responded to threat 7506 | -8/Materials | Build established: Tank 7932 | -8/Materials | Central database locked down 8346 | -8/Materials | First assault squad dispatched 8462 | -8/Materials | Destroyed 8 combat bots 8965 | -8/Materials | Discovered new exit (range 6) 9043 | -8/Materials | Identified exit to Garrison 9043 | -8/Materials | Entered Garrison 9043 | -8/Garrison | Discovered recently destroyed garrison 9173 | -8/Garrison | Discovered new exit (range 57) 9216 | -8/Garrison | Discovered new exit (range 41) 9229 | -8/Garrison | Discovered new exit (range 68) 9252 | -8/Garrison | Garrison Relay disabled 9411 | -8/Garrison | Garrison Relay disabled 9736 | -8/Garrison | Build established: Hacker-Gunner 9825 | -8/Garrison | Garrison Relay disabled 10167 | -8/Garrison | Phase Generator disabled 10167 | -8/Garrison | Attempted to access garrison exit controls, blocked by remote lockdown 10232 | -8/Garrison | Build established: Commander-Gunner 10370 | -8/Garrison | Garrison Relay disabled 10413 | -8/Garrison | Entered Materials 10413 | -8/Materials | Accompanied by 5 allies 10598 | -8/Materials | Discovered new exit (range 8) 10636 | -8/Materials | Identified Power Bank 10638 | -8/Materials | Attached Power Bank, gained temporary slots: Power x3 10996 | -8/Materials | Entered Factory 10996 | -7/Factory | Accompanied by 2 allies 10996 | -7/Factory | Evolved 2 slots: Propulsion x1, Utility x1 10997 | -7/Factory | Identified exit to Storage 10998 | -7/Factory | Loaded intel: 4 garrison access locations 11188 | -7/Factory | Build established: Tank 11249 | -7/Factory | Discovered new exit (range 13) 11315 | -7/Factory | Fabricated R-06 Scavenger? 11858 | -7/Factory | Destroyed 8 combat bots 12067 | -7/Factory | Identified exit to Lower Caves 12095 | -7/Factory | Identified exit to Garrison 12095 | -7/Factory | Entered Garrison 12143 | -7/Garrison | Triggered checkpoint 12192 | -7/Garrison | Garrison Relay disabled 12317 | -7/Garrison | Triggered checkpoint 12373 | -7/Garrison | Discovered new exit (range 13) 12475 | -7/Garrison | Triggered checkpoint 12502 | -7/Garrison | Build established: Gunner 12543 | -7/Garrison | Garrison Relay disabled 12688 | -7/Garrison | Destroyed 9 combat bots 12701 | -7/Garrison | Triggered checkpoint 12703 | -7/Garrison | Triggered checkpoint 12769 | -7/Garrison | Triggered checkpoint 12870 | -7/Garrison | Discovered new exit (range 12) 12943 | -7/Garrison | Attempted to access garrison exit controls, blocked by remote lockdown 13207 | -7/Garrison | Triggered checkpoint 13246 | -7/Garrison | Lost 4 allies 13268 | -7/Garrison | Lost 6 parts (2p1u3w) 13317 | -7/Garrison | Triggered checkpoint 13389 | -7/Garrison | Triggered checkpoint 13407 | -7/Garrison | Discovered new exit (range 5) 13429 | -7/Garrison | Entered Factory 13429 | -7/Factory | Accompanied by 3 allies 13477 | -7/Factory | Discovered new exit (range 10) 13519 | -7/Factory | Lost 3 allies 13957 | -7/Factory | Entered Lower Caves 13963 | -7/Lower Caves | Met a Warlord Commander 13964 | -7/Lower Caves | Learned location of Warlord (-5) 13965 | -7/Lower Caves | Warlord Commander delivered Encrypted Comm Array 13965 | -7/Lower Caves | Found Encrypted Comm Array 14303 | -7/Lower Caves | Build established: Tank 14821 | -7/Lower Caves | Discovered new exit (range 7) 15260 | -7/Lower Caves | Learned location of Extension (-4) 15719 | -7/Lower Caves | Entered another Lower Caves area 16103 | -7/Lower Caves | Discovered new exit (range 61) 16215 | -7/Lower Caves | Discovered new exit (range 58) 16533 | -7/Lower Caves | Learned Factory stockpile data 16623 | -7/Lower Caves | Learned location of Zion (-7) 16649 | -7/Lower Caves | Build established: Mutant 16840 | -7/Lower Caves | Attracted the attention of an 0b10 checkpoint 16893 | -7/Lower Caves | Entered Zion 17111 | -7/Zion | Build established: Tank 17151 | -7/Zion | System corruption cleaned by Quarantine Array 17457 | -7/Zion | Discovered new exit (range 15) 17594 | -7/Zion | Build established: Mutant 17617 | -7/Zion | Given A8's code to call for help 17647 | -7/Zion | Learned Factory emergency access door positions 17845 | -7/Zion | Given the Hacking Drone Bay 17846 | -7/Zion | Found Prototype Device 17846 | -7/Zion | Identified Hacking Drone Bay 18263 | -7/Zion | Learned Factory emergency access door positions 19185 | -7/Zion | Entered Proximity Caves 19256 | -6/Proximity Caves | Attracted the attention of an 0b10 checkpoint 19454 | -6/Proximity Caves | Spotted B-75 Beast 19546 | -6/Proximity Caves | Build established: Tank 20774 | -6/Proximity Caves | Discovered new exit (range 15) 21203 | -6/Proximity Caves | Build established: Trapper-Tank 21232 | -6/Proximity Caves | Entered Factory 21232 | -6/Factory | Evolved 2 slots: Propulsion x1, Utility x1 21578 | -6/Factory | Discovered new exit (range 11) 21786 | -6/Factory | System corruption reached 10% 21816 | -6/Factory | Lost 5 parts (1n1u3w) 21944 | -6/Factory | Lost 4 parts (3n1u) 22020 | -6/Factory | Lost 3 parts (3n) 22037 | -6/Factory | Discovered new exit (range 16) 22070 | -6/Factory | Build established: Trapper-Mutant 22136 | -6/Factory | Lost 4 parts (1p2n1w) 22967 | -6/Factory | Identified exit to Garrison 22967 | -6/Factory | Entered Garrison 22999 | -6/Garrison | Triggered checkpoint 23113 | -6/Garrison | Garrison Relay disabled 23269 | -6/Garrison | Lost 5 parts (1n4u) 23397 | -6/Garrison | Phase Generator disabled 23719 | -6/Garrison | Triggered checkpoint 23796 | -6/Garrison | Build established: Hauler-Tank 23870 | -6/Garrison | Spotted B-75 Beast 23928 | -6/Garrison | Discovered new exit (range 11) 24029 | -6/Garrison | Triggered checkpoint 24048 | -6/Garrison | Garrison Relay disabled 24092 | -6/Garrison | Garrison Relay disabled 24144 | -6/Garrison | Attempted to access garrison exit controls, blocked by remote lockdown 24275 | -6/Garrison | Triggered checkpoint 24357 | -6/Garrison | Build established: Scavenger-Tank 24393 | -6/Garrison | Garrison Relay disabled 24427 | -6/Garrison | Discovered new exit (range 15) 24460 | -6/Garrison | Entered Factory 24585 | -6/Factory | Core integrity fell below 50% 24810 | -6/Factory | First assault squad dispatched 24886 | -6/Factory | Lost 3 parts (1u2w) 24996 | -6/Factory | Discovered new exit (range 7) 25097 | -6/Factory | Entered another Factory area 25097 | -5/Factory | Evolved 2 slots: Propulsion x1, Utility x1 25098 | -5/Factory | Identified exit to Upper Caves 25414 | -5/Factory | Local machine network offline 25957 | -5/Factory | Garrison activated, responded to threat 26085 | -5/Factory | Identified exit to Garrison 26085 | -5/Factory | Entered Garrison 26140 | -5/Garrison | Phase Generator disabled 26189 | -5/Garrison | Found embedded Infiltrators 26198 | -5/Garrison | Triggered checkpoint 26332 | -5/Garrison | Triggered checkpoint 26333 | -5/Garrison | Spotted B-75 Beast 26339 | -5/Garrison | Triggered checkpoint 26346 | -5/Garrison | Triggered checkpoint 26364 | -5/Garrison | Destroyed B-75 Beast 26373 | -5/Garrison | Triggered checkpoint 26400 | -5/Garrison | Destroyed 14 combat bots 26410 | -5/Garrison | Lost 4 allies 26487 | -5/Garrison | Garrison Relay disabled 26545 | -5/Garrison | Triggered checkpoint 26555 | -5/Garrison | Triggered checkpoint 26668 | -5/Garrison | Rescued AZ-K3N 26702 | -5/Garrison | Triggered checkpoint 26814 | -5/Garrison | Discovered new exit (range 14) 27020 | -5/Garrison | Garrison Relay disabled 27063 | -5/Garrison | Discovered new exit (range 13) 27174 | -5/Garrison | Entered Factory 27174 | -5/Factory | Accompanied by 3 allies 27474 | -5/Factory | First assault squad dispatched 27575 | -5/Factory | Entered Upper Caves 27976 | -5/Upper Caves | Attracted the attention of an 0b10 checkpoint 28301 | -5/Upper Caves | Encountered a Warlord checkpoint 28492 | -5/Upper Caves | Acquired the password to a Derelict Tinkerer's latest research 29810 | -5/Upper Caves | Caught by Unaware searching for contraband prototypes 29815 | -5/Upper Caves | Caught by Unaware searching for contraband prototypes 29848 | -5/Upper Caves | Lost 3 parts (1p2n) 29944 | -5/Upper Caves | Found Prototype Special Weapon 30079 | -5/Upper Caves | Discovered new exit (range 10) 30168 | -5/Upper Caves | Entered another Upper Caves area 30246 | -5/Upper Caves | Build established: Hauler-Tank 30372 | -5/Upper Caves | Discovered new exit (range 10) 31294 | -5/Upper Caves | Encountered a Warlord checkpoint 32098 | -5/Upper Caves | Discovered new exit (range 11) 32154 | -5/Upper Caves | Build established: Trapper-Gunner 32463 | -5/Upper Caves | Entered Warlord 32965 | -5/Warlord | Build established: Trapper-Mutant 33763 | -5/Warlord | Warlord's base attacked by MAIN.C 34026 | -5/Warlord | Met Warlord 34113 | -5/Warlord | Warlord forces counterattacked 34117 | -5/Warlord | Found Prototype Hackware 34137 | -5/Warlord | Found Prototype Device 34137 | -5/Warlord | Identified Exp. Phase Shifter 34153 | -5/Warlord | Found Vortex Chain Reactor 34169 | -5/Warlord | Found Prototype Processor 34169 | -5/Warlord | Identified Exp. Core Analyzer 34376 | -5/Warlord | Found Prototype Energy Gun 34384 | -5/Warlord | Found Prototype Energy Gun 34389 | -5/Warlord | Found Prototype Energy Cannon 34391 | -5/Warlord | Found Prototype Energy Cannon 34399 | -5/Warlord | Found Prototype Launcher 34419 | -5/Warlord | Build established: Scavenger-Mutant 34438 | -5/Warlord | Warlord base infiltrated, sounded retreat 34524 | -5/Warlord | Spotted Executioner 34528 | -5/Warlord | Destroyed Executioner 34529 | -5/Warlord | Lost 4 allies 34575 | -5/Warlord | Found Prototype Device 34575 | -5/Warlord | Identified Exp. Shock Absorption System 34607 | -5/Warlord | Spotted Executioner 34643 | -5/Warlord | Discovered new exit (range 12) 34653 | -5/Warlord | Lost 11 allies 34663 | -5/Warlord | Spotted Striker 34710 | -5/Warlord | Entered Proximity Caves 34807 | -4/Proximity Caves | Build established: Scavenger-Tank 35776 | -4/Proximity Caves | Discovered new exit (range 5) 35786 | -4/Proximity Caves | Entered Factory 35786 | -4/Factory | Evolved 2 slots: Power x1, Utility x1 35804 | -4/Factory | Identified Ghost Barrier 36117 | -4/Factory | Spotted B-86 Titan 36523 | -4/Factory | Identified exit to Upper Caves 36523 | -4/Factory | Identified exit to Extension 36523 | -4/Factory | Identified exit to Armory 36785 | -4/Factory | Discovered new exit (range 13) 36995 | -4/Factory | Identified Vortex Catalyst Activator 37036 | -4/Factory | First assault squad dispatched 37039 | -4/Factory | Lost 10 parts (2p6n2u) 37097 | -4/Factory | Entered Upper Caves 37114 | -4/Upper Caves | Attracted the attention of an 0b10 checkpoint 37161 | -4/Upper Caves | Destroyed 8 combat bots 37166 | -4/Upper Caves | Lost 6 parts (2n2u2w) 37490 | -4/Upper Caves | Build established: Trapper-Mutant 37853 | -4/Upper Caves | Build established: Trapper-Gunner 39450 | -4/Upper Caves | Build established: Hacker-Gunner 40125 | -4/Upper Caves | Learned location of 1 exit from Research 41286 | -4/Upper Caves | System corruption reached 10% 41583 | -4/Upper Caves | Build established: Hacker-Mutant 41869 | -4/Upper Caves | Learned Research garrison access intel 42042 | -4/Upper Caves | Ambushed by wild Derelicts 42401 | -4/Upper Caves | Build established: Scavenger-Tank 42805 | -4/Upper Caves | Build established: Trapper-Gunner 43382 | -4/Upper Caves | Discovered new exit (range 5) 43411 | -4/Upper Caves | Entered another Upper Caves area 43516 | -4/Upper Caves | Discovered new exit (range 9) 43733 | -4/Upper Caves | Build established: Scavenger-Gunner 43954 | -4/Upper Caves | Learned 4 Research zone layouts 44056 | -4/Upper Caves | Discovered new exit (range 7) 44085 | -4/Upper Caves | Entered Zhirov 44086 | -4/Zhirov | Discovered new exit (range 3) 44129 | -4/Zhirov | Met Zhirov 44171 | -4/Zhirov | Learned location of Quarantine (-2) 44171 | -4/Zhirov | Learned location of Testing (-3) 44171 | -4/Zhirov | Learned location of Command (-1) 44195 | -4/Zhirov | Zhirov requested help retrieving the SGEMP Prototype 44230 | -4/Zhirov | Found Alien Artifact 44230 | -4/Zhirov | Identified Integrated Dissipator 44230 | -4/Zhirov | Installed Integrated Dissipator, increased core heat dissipation (+20) 44259 | -4/Zhirov | Found Alien Artifact 44417 | -4/Zhirov | Build established: Scavenger-Mutant 44605 | -4/Zhirov | Entered Proximity Caves 44702 | -3/Proximity Caves | Attracted the attention of an 0b10 checkpoint 45664 | -3/Proximity Caves | Discovered new exit (range 7) 45822 | -3/Proximity Caves | Entered Research 45822 | -3/Research | Evolved 2 slots: Utility x2 45823 | -3/Research | Identified exit to Testing 45824 | -3/Research | Identified exit to Research 45826 | -3/Research | Loaded intel: 4 garrison access locations 46052 | -3/Research | Garrison activated, responded to threat 46067 | -3/Research | Found Spectral Analyzer 46085 | -3/Research | Entered Testing 46193 | -3/Testing | Identified Vortex Cannon (x2) 46359 | -3/Testing | Lost 5 parts (1n2u2w) 46439 | -3/Testing | Lost 11 parts (5n3u3w) 46445 | -3/Testing | Found Prototype Energy Cannon 46445 | -3/Testing | Identified Disintegrator 46673 | -3/Testing | Found Prototype Energy Cannon 46673 | -3/Testing | Identified Hpw. Disruptor Cannon 46756 | -3/Testing | Fabricated Lgt. Quantum Reactor (x2) 46895 | -3/Testing | Spotted PY-OAK0LV4AOV 46901 | -3/Testing | Destroyed PY-OAK0LV4AOV 46914 | -3/Testing | Found Prototype Protection 46914 | -3/Testing | Identified Centrium Heavy Armor Plating 46929 | -3/Testing | Scanned by Researcher 46955 | -3/Testing | System corruption reached 10% 47132 | -3/Testing | Found Prototype Protection 47132 | -3/Testing | Identified SHELL Armor 47141 | -3/Testing | Found Prototype Protection 47167 | -3/Testing | Found Prototype Protection 47168 | -3/Testing | Identified Med. Regenerative Plating 47172 | -3/Testing | Found Prototype Protection 47318 | -3/Testing | Found Prototype Ballistic Cannon 47318 | -3/Testing | Identified Omega Cannon 47481 | -3/Testing | Lost 6 parts (1p3n1u1w) 47865 | -3/Testing | Build established: Scavenger-Tank 47897 | -3/Testing | Found Prototype Device 47897 | -3/Testing | Identified Exp. Focal Shield 48103 | -3/Testing | System corruption reached 30% 48166 | -3/Testing | Found Nanosword 48330 | -3/Testing | Found Prototype Processor 48330 | -3/Testing | Identified Exp. Targeting Computer 48345 | -3/Testing | Found Prototype Slashing Weapon 48345 | -3/Testing | Identified Molecular Scythe 48492 | -3/Testing | Found Exp. Targeting Computer 48525 | -3/Testing | Found Prototype Energy Cannon 48525 | -3/Testing | Identified Imp. Potential Cannon 48585 | -3/Testing | First assault squad dispatched 48777 | -3/Testing | Crushed by falling debris 48807 | -3/Testing | Build established: Trapper-Gunner 48841 | -3/Testing | Found Prototype Launcher 48841 | -3/Testing | Identified Com. Tesla Bomb Launcher 48845 | -3/Testing | Found Com. Tesla Bomb Launcher 48849 | -3/Testing | Found Com. Tesla Bomb Launcher 49421 | -3/Testing | Spotted Striker 49443 | -3/Testing | Spotted Striker 49488 | -3/Testing | Destroyed Striker 49515 | -3/Testing | Spotted Alpha 7 49518 | -3/Testing | Core integrity fell below 50% 49545 | -3/Testing | Destroyed Alpha 7 49574 | -3/Testing | Found Prototype Ballistic Gun 49616 | -3/Testing | Stole the SGEMP Prototype 49991 | -3/Testing | Entered Research 49991 | -2/Research | Warlord forces began assault on 0b10 49991 | -2/Research | Evolved 2 slots: Utility x2 50016 | -2/Research | Distinguished unit "Knights of the Pentagonal Table" dispatched to help 50016 | -2/Research | Distinguished unit "Smaug Mourners" dispatched to help 50101 | -2/Research | Research machine network offline 50273 | -2/Research | Discovered new exit (range 9) 50357 | -2/Research | Borebot progress halted 50396 | -2/Research | Spotted Striker 50400 | -2/Research | Spotted Striker 50404 | -2/Research | Destroyed Striker 50414 | -2/Research | Spotted Striker 50430 | -2/Research | Destroyed Striker 50435 | -2/Research | Destroyed Striker 50452 | -2/Research | Lost 8 allies 50456 | -2/Research | Destroyed 10 combat bots 50673 | -2/Research | Lost 3 allies 50696 | -2/Research | Build established: Scavenger-Tank 50745 | -2/Research | Borebot progress halted 50786 | -2/Research | Borebot progress halted 51115 | -2/Research | Spotted Executioner 51116 | -2/Research | Spotted Executioner 51147 | -2/Research | Build established: Trapper-Tank 51308 | -2/Research | Spotted Striker 51318 | -2/Research | Identified Multirail 51404 | -2/Research | Lost 5 allies 51736 | -2/Research | Discovered new exit (range 6) 51747 | -2/Research | Entered Quarantine 51778 | -2/Quarantine | Garrison activated, responded to threat 52007 | -2/Quarantine | Build established: Trapper-Gunner 52285 | -2/Quarantine | Garrison activated, responded to threat 52330 | -2/Quarantine | Destroyed 7 combat bots 52527 | -2/Quarantine | Discovered new exit (range 13) 52552 | -2/Quarantine | Found Alien Artifact 52598 | -2/Quarantine | Found Alien Slashing Weapon 52598 | -2/Quarantine | Identified Sigix Broadsword 52675 | -2/Quarantine | System corruption reached 10% 52690 | -2/Quarantine | Identified Hvy. Regenerative Plating 52716 | -2/Quarantine | Lost 5 parts (3u2w) 52747 | -2/Quarantine | First assault squad dispatched 52902 | -2/Quarantine | Found Spectral Analyzer 52998 | -2/Quarantine | Entered Access 52998 | -1/Access | Evolved 2 slots: Utility x2 52999 | -1/Access | Delivered the SGEMP Prototype to Zhirov 52999 | -1/Access | Zhirov transferred Access data 53000 | -1/Access | Loaded intel: 104 machine locations 53000 | -1/Access | Loaded intel: 89 trap records 53000 | -1/Access | Identified exit to Surface 53000 | -1/Access | Discovered exit to Surface (range 108) 53000 | -1/Access | Identified exit to Command 53000 | -1/Access | Discovered exit to Command (range 130) 53183 | -1/Access | Identified exit to Garrison 53354 | -1/Access | Spotted B-99 Colossus 53509 | -1/Access | Zhirov warped through subspace 53512 | -1/Access | Build established: Trapper-Mutant 53534 | -1/Access | First assault squad dispatched 53624 | -1/Access | Lost 4 parts (1p1n2u) 53639 | -1/Access | Found Alien Artifact 53728 | -1/Access | Identified Subatomic Replicator 53728 | -1/Access | Used Subatomic Replicator to replicate SHELL Armor 54026 | -1/Access | Identified Transdimensional Reconstructor (x2) 54026 | -1/Access | Warped through subspace 54179 | *** | Escaped! Last Messages --------------- 54014_ G-73 Enforcer destroyed. 54019_ Door malfunctions. 54020_ Acquired 1 matter. 54020_ U-05 Engineer builds a Wall. 54021_ Lrn. Missile Launcher destroyed. 54022_ Enh. Force Rifle destroyed. 54024_ U-05 Engineer builds a Wall. 54025_ The unstable cave ceiling collapses. 54026_ Identified Transdimensional Reconstructor. 54026_ Warped through subspace. 54048_ Acquired Micro-nuke Launcher. 54050_ Acquired 44 matter. 54053_ Acquired Imp. Core Shielding. 54095_ 5DCLXV%XH3V1R>,KW#RP 54113_ System corrupted: Substantial component data lost. 54119_ U-05 Engineer builds a Door. 54128_ U-05 Engineer builds a Wall. 54168_ 1WYVG=YRJ:MJ0 /P8UVNETXFKY15J